{"text_format":"1","workbook":"xlsx","n_sheets":6,"sheets":["Heren - Ptn","Heren - Kms","Dames - Ptn","Dames - Kms","Jeugd -18j - Ptn","Jeugd -18j  Kms"],"not_rendered":{"charts":0,"images":0,"macros":0,"external_links":0,"defined_names":2,"comments":2,"pivot_tables":0},"unopened":[],"bounds":{"document_bytes":16777216,"sheet_cells":100000,"rows_first":2000,"rows_last":500,"rows_between":2000,"halvings":0,"cell_chars":16384,"cell_head_chars":4096},"cells_cut":0,"cells_raw":0,"read":"whole","date_system":"1900"}

{"sheet":"Heren - Ptn","index":0,"n_rows":51,"n_cols":125,"rows_kept":51,"cut":false,"hidden":false,"merged":[]}
[null,"2015 HEREN - Punten","2015-02-14","2015-02-15","2015-02-21","2015-02-22","2015-02-28","Februari","2015-03-01","2015-03-07","2015-03-08","2015-03-14","2015-03-15","2015-03-21","2015-03-22","2015-03-28","2015-03-29","Maart","2015-04-02","2015-04-04","2015-04-05","2015-04-06","2015-04-09","2015-04-11","2015-04-12","2015-04-16","2015-04-18","2015-04-19","UITPIJLING","2015-04-23","2015-04-25","UITPIJLING","2015-04-26","2015-04-30","April","2015-05-01","2015-05-02","2015-05-03","2015-05-07","2015-05-09","2015-05-10","2015-05-12","2015-05-14","2015-05-16","2015-05-17","2015-05-21","2015-05-23","2015-05-24","2015-05-25","2015-05-28","2015-05-30","2015-05-31","Mei","2015-06-04","2015-06-06","2015-06-07","2015-06-11","2015-06-13","2015-06-14","ETENTJE 14/06","2015-06-18","2015-06-20","2015-06-21","2015-06-25","2015-06-27","2015-06-28","Juni","2015-07-04","2015-07-05","2015-07-09","2015-07-11","2015-07-12","2015-07-16","2015-07-18","2015-07-19","2015-07-21","2015-07-23","2015-07-23","2015-07-25","2015-07-26","27&28/07/2015","2015-07-30","2015-07-30","Juli","2015-08-01","2015-08-02","2015-08-05","2015-08-06","2015-08-06","2015-08-08","2015-08-09","2015-08-13","2015-08-13","2015-08-15","2015-08-16","2015-08-20","2015-08-21","2015-08-22","2015-08-23","2015-08-29","2015-08-30","Augustus","2015-09-02","UITPIJLING","2015-09-03","2015-09-05","2015-09-06","2015-09-09","2015-09-10","2015-09-12","2015-09-13","2015-09-18","2015-09-19","2015-09-20","2015-09-24","2015-09-26","2015-09-27","September","561 - BRUGGENROUTE","513 - HEIRNISROUTE","523 - PARKINGROUTE","512-HEIRNISROUTE 1","524- AMALRIKROUTE","Permanenten","EINDSTAND"]
[1,"Anseau Stefan",null,null,null,null,null,{"$f":"SUM(C2:F2)","v":0},null,null,null,null,null,null,null,null,null,{"$f":"SUM(I2:Q2)","v":0},null,null,null,null,null,null,null,null,null,null,null,null,null,null,null,null,{"$f":"SUM(S2:AG2)","v":0},null,null,null,null,null,null,null,null,null,null,null,null,null,null,null,null,null,{"$f":"SUM(AJ2:AZ2)","v":0},null,null,null,null,null,null,null,null,null,null,null,null,null,{"$f":"SUM(BB2:BN2)","v":0},null,null,null,null,null,null,null,null,null,null,null,null,null,null,null,null,{"$f":"SUM(BP2:CE2)","v":0},null,null,null,null,null,null,null,null,null,null,null,null,null,null,null,null,null,{"$f":"SUM(CG2:CW2)","v":0},null,null,null,null,null,null,null,null,null,null,null,null,null,null,null,{"$f":"SUM(CY2:DM2)","v":0},null,null,null,null,null,{"$f":"SUM(DO2:DS2)","v":0},{"$f":"H2+R2+AI2+BA2+BO2+CF2+CX2+DN2+DT2","v":0}]
[{"$f":"A2+1","v":2},"Baekelandt James",null,null,null,2,null,2,null,null,2,null,null,null,null,null,null,2,null,null,null,null,null,null,2,null,null,null,null,null,null,null,null,null,{"$f":"SUM(S3:AG3)","v":2},null,null,null,null,2,null,null,null,null,null,null,null,null,null,null,null,null,2,null,null,null,null,null,null,null,null,null,null,null,null,null,0,null,null,null,null,null,null,null,null,null,null,null,null,null,null,null,null,0,null,null,null,null,null,null,null,null,null,null,null,null,null,null,null,null,null,0,null,null,null,null,null,null,null,null,null,null,null,null,null,null,null,0,null,null,null,null,null,0,8]
[{"$f":"A3+1","v":3},"Baeyens Hendrik",null,null,null,null,null,0,null,null,2,null,null,null,null,null,null,2,null,null,null,null,null,null,null,null,null,null,null,null,null,null,3,null,3,null,2,null,null,null,2,null,null,2,null,null,null,2,null,null,null,null,8,null,null,null,null,null,null,null,null,null,null,null,null,null,0,null,null,null,null,null,null,null,null,null,null,null,null,null,null,null,null,0,null,null,null,null,null,null,null,null,null,null,null,null,null,null,null,null,null,0,null,null,null,null,null,null,null,null,null,null,null,null,null,null,null,0,null,null,null,null,null,0,13]
[4,"Broekaert Philip",2,2,2,null,2,{"$f":"SUM(C5:G5)","v":8},2,2,2,2,2,null,null,null,null,10,null,null,null,2,null,2,2,null,2,2,null,null,null,null,3,null,13,4,null,null,null,null,2,null,2,2,null,1,2,2,4,null,null,null,19,null,5,2,null,null,2,2,null,null,2,null,null,null,13,null,null,null,2,2,null,2,2,null,null,null,null,2,null,null,null,10,2,4,null,null,null,4,null,null,null,2,2,null,null,null,2,null,null,16,null,null,null,null,null,null,null,null,null,null,2,2,null,2,2,8,null,null,null,null,null,0,97]
[5,"Cantaert Steven",null,null,null,null,null,{"$f":"SUM(C6:G6)","v":0},null,null,null,null,null,null,null,null,null,0,null,null,null,null,null,null,null,null,null,null,null,null,null,null,3,null,3,null,null,null,null,null,null,null,null,null,null,null,null,null,null,null,null,null,0,null,null,null,null,null,null,null,null,null,null,null,null,null,0,null,null,null,null,null,null,null,null,null,null,null,null,null,null,null,null,0,null,null,null,null,null,null,null,null,null,null,null,null,null,null,null,null,null,0,null,null,null,null,null,null,null,null,null,null,null,null,null,null,null,0,null,null,null,null,null,0,3]
[6,"Daneels Pieter",2,null,null,null,null,2,null,null,null,null,null,null,null,null,null,0,null,null,null,null,null,null,null,null,null,null,null,null,null,null,null,null,0,null,2,null,null,null,null,null,null,null,null,null,null,null,null,null,null,null,2,null,null,null,null,null,null,null,null,null,null,null,null,null,0,null,null,null,null,null,null,null,null,null,null,null,null,null,null,null,null,0,null,null,null,null,null,null,null,null,null,null,null,null,null,null,null,null,null,0,null,null,null,null,null,null,null,null,null,null,null,null,null,null,null,{"$f":"SUM(CY7:DM7)","v":0},null,null,null,null,null,{"$f":"SUM(DO7:DS7)","v":0},4]
[7,"De Geyter Victor",null,null,null,null,null,0,null,null,null,null,null,4,null,null,null,4,null,null,null,null,null,null,null,null,null,2,null,null,null,null,null,null,2,4,4,null,null,null,null,null,4,2,null,null,2,null,null,null,2,2,20,null,5,2,null,null,2,2,null,null,2,null,null,null,13,2,2,null,2,2,null,null,null,2,2,null,null,null,null,null,2,14,2,2,null,null,null,null,null,null,null,2,2,null,null,2,2,2,4,18,3,null,null,null,null,2,null,null,2,null,null,4,null,2,2,15,null,null,null,null,null,0,86]
[8,"De Groote Dimitri",null,null,null,null,null,0,null,null,2,null,null,null,2,null,null,4,null,null,null,null,null,null,null,null,null,null,null,null,null,null,null,null,0,null,null,null,null,null,null,null,null,null,null,null,null,null,null,null,null,null,0,null,5,null,null,null,2,null,null,null,null,null,null,null,7,null,null,null,null,null,null,null,null,null,null,null,null,2,null,null,null,2,2,null,null,null,null,null,null,null,null,null,null,null,null,2,null,null,null,4,null,null,null,null,null,null,null,null,null,null,null,null,null,null,null,0,null,null,null,null,null,0,17]
[9,"De Guisme Christiaan",null,2,2,null,null,4,2,2,2,null,null,null,null,null,null,6,null,null,null,null,null,2,2,null,2,null,null,null,null,null,null,null,6,null,null,null,null,2,2,null,2,null,2,null,null,null,null,null,2,2,12,null,5,2,null,null,null,null,null,null,2,null,null,null,9,null,null,null,null,null,null,2,2,2,2,null,2,2,null,null,2,14,2,null,1,2,null,2,2,null,null,2,2,null,null,null,2,null,null,15,null,null,null,null,null,null,null,null,null,null,null,null,null,null,2,2,null,null,null,null,null,0,68]
[10,"De Loor Pascal",null,null,2,null,2,4,null,2,2,2,2,2,2,2,null,14,null,null,null,null,null,null,null,1,2,2,null,1,2,2,3,1,{"$f":"SUM(S11:AH11)","v":14},4,null,4,1,2,2,null,2,2,2,1,2,null,4,1,4,2,33,1,5,null,1,2,null,null,null,null,null,null,null,null,9,null,null,1,2,2,1,2,2,null,null,2,null,2,2,null,null,16,null,null,null,null,2,4,2,null,1,2,4,1,2,2,2,2,null,24,3,2,1,null,2,null,1,null,2,null,2,2,1,2,null,18,null,null,null,null,null,0,132]
[11,"De Meyer Erwin",2,2,2,2,2,10,2,null,null,2,null,null,null,2,2,8,null,null,null,null,null,2,2,null,2,2,2,null,null,null,3,null,13,2,2,null,null,2,null,null,null,null,null,null,2,null,2,null,null,null,10,null,5,2,null,2," ",2,null,null,null,null,null,null,11,null,null,null,null,null,null,null,2,2,null,null,null,2,null,null,2,8,2,2,null,2,null,null,null,null,null,null,null,null,null,2,2,2,2,14,3,4,null,null,null,2,null,null,null,null,null,2,null,2,2,15,null,null,null,null,null,0,89]
[12,"De Meyere Rudy",null,2,2,2,2,8,2,1,2,null,null,2,2,2,2,13,1,2,2,2,1,2,2,1,2,2,null,1,2,2,3,1,{"$f":"SUM(S13:AH13)","v":26},2,2,1,1,2,2,null,2,2,2,1,2,2,4,1,2,2,30,1,5,2,1,null,2,2,null,2,2,1,2,2,22,2,null,1,2,2,1,2,2,2,null,2,2,2,2,2,null,24,2,2,null,null,2,2,2,null,1,2,2,1,2,2,2,2,2,26,3,4,1,2,1,2,1,null,null,null,2,2,1,2,2,23,null,null,null,null,null,0,172]
[13,"De Roeck Christian",2,2,2,null,2,8,2,2,null,2,2,2,null,2,null,12,null,2,null,2,null,2,null,null,2,2,null,null,2,null,3,null,15,4,null,null,1,null,null,null,2,null,null,1,2,2,4,null,null,null,16,1,5,null,null,2,2,2,null,null,null,null,2,2,16,null,null,null,2,2,null,null,2,null,null,null,null,2,null,null,2,10,null,null,null,2,null,null,null,null,null,null,null,null,null,null,2,2,4,10,3,null,null,2,2,2,null,null,null,null,null,null,1,2,2,{"$f":"SUM(CY14:DM14)","v":14},null,null,null,null,null,{"$f":"SUM(DO14:DS14)","v":0},101]
[14,"De Smet Werner",2,null,null,null,null,2,null,null,null,2,null,2,null,null,null,4,null,null,2,2,null,null,2,null,null,null,null,null,null,null,3,null,9,null,2,null,null,null,null,null,null,2,null,null,null,1,null,null,null,2,7,null,null,2,null,null,null,null,null,null,2,null,2,null,6,null,null,null,null,null,null,null,2,null,null,null,null,null,null,null,null,2,null,null,null,null,null,null,null,null,null,null,null,null,null,null,null,null,null,0,null,null,null,null,null,null,null,null,null,null,null,null,null,null,null,0,null,null,null,null,null,0,30]
[15,"De Vos Samuel",2,2,2,2,2,10,2,2,2,2,2,2,4,2,2,20,null,null,2,2,null,2,2,null,2,2,null,null,null,null,3,null,15,4,2,4,null,2,2,null,2,2,2,null,2,2,4,null,4,2,34,null,5,2,null,null,2,2,null,2,2,null,2,2,19,2,2,null,2,2,null,2,2,null,null,null,2,2,null,null,null,16,2,4,null,2,null,4,4,null,null,4,4,null,2,2,2,2,4,36,3,2,null,2,4,4,null,null,2,2,2,2,null,2,2,27,null,null,null,null,null,0,177]
[16,"De Vrieze Danny",null,null,null,null,null,0,null,null,null,null,null,null,null,null,null,0,null,null,null,null,null,null,null,null,null,null,null,null,null,null,null,null,0,null,null,null,null,null,null,null,null,null,null,null,null,null,null,null,null,null,0,null,null,null,null,null,null,null,null,null,null,null,null,null,0,null,null,null,null,null,null,null,null,null,null,null,null,null,null,null,null,0,null,2,null,2,null,null,null,null,null,null,null,null,null,null,null,null,null,4,3,null,null,null,null,2,null,null,null,null,null,null,null,null,null,5,null,null,null,null,null,0,9]
[17,"De Waegenaere Gino",2,2,null,null,2,6,null,null,2,null,2,null,null,null,null,4,null,2,2,2,null,null,2,null,2,null,null,null,null,null,3,null,13,2,null,null,null,null,null,null,2,null,2,null,null,2,2,null,null,2,12,null,5,null,null,null,2,null,null,null,null,null,null,null,7,null,2,null,null,null,null,null,2,null,2,null,null,2,null,null,2,10,2,2,null,null,null,null,2,null,null,null,null,null,null,null,2,null,2,10,null,null,null,null,null,null,null,null,null,null,null,null,null,null,null,{"$f":"SUM(CY18:DM18)","v":0},null,null,null,null,null,{"$f":"SUM(DO18:DS18)","v":0},62]
[18,"Du Tranoix Freddy",2,2,null,2,2,8,2,2,2,null,null,4,2,2,null,14,null,2,2,2,null,2,2,null,null,null,null,null,2,null,3,null,15,2,2,2,null,2,2,null,2,null,2,null,4,2,2,null,2,2,26,null,null,null,null,null,null,null,null,2,2,null,2,2,8,2,2,null,null,null,null,2,2,2,2,null,2,null,null,null,2,16,2,2,null,2,null,4,2,null,null,null,2,null,null,2,null,2,2,20,3,null,null,2,2,2,null,1,2,null,2,2,null,2,2,20,null,null,null,null,null,0,127]
[19,"Ghijs Koen",null,null,null,null,null,0,null,null,null,null,null,null,null,null,null,0,null,null,null,null,null,null,null,null,null,null,null,null,null,null,null,null,0,null,null,null,null,null,null,null,null,null,null,null,null,null,null,null,null,null,0,null,null,null,null,null,null,null,null,null,null,null,null,null,0,null,null,null,null,null,null,null,null,null,null,null,null,null,null,null,null,0,null,null,null,null,null,null,null,null,null,null,null,null,null,null,null,null,null,0,null,null,null,null,null,null,null,null,null,null,null,null,null,null,null,0,null,null,null,null,null,0,0]
[20,"Koops Arie",2,2,2,null,2,8,null,2,2,2,null,2,2,2,null,12,1,2,null,2,1,2,null,1,2,null,null,1,2,null,null,1,{"$f":"SUM(S21:AH21)","v":15},2,2,null,1,2,null,null,2,2,2,1,2,null,4,1,2,2,25,1,5,null,1,2,null,2,null,2,null,1,2,null,16,2,null,null,null,null,null,2,null,2,null,2,2,null,null,2,null,12,null,null,null,null,null,null,null,null,1,2,null,null,null,2,null,null,2,7,null,null,null,null,null,null,null,null,null,null,2,2,null,2,2,{"$f":"SUM(CY21:DM21)","v":8},null,null,null,null,null,{"$f":"SUM(DO21:DS21)","v":0},103]
[21,"Lauwaert Kris",null,null,null,null,null,0,null,null,null,null,null,null,null,null,null,0,null,null,null,null,null,null,null,null,null,null,null,null,null,null,null,null,0,null,2,null,null,2,null,null,null,null,2,null,null,2,2,null,2,null,12,null,5,null,null,null,2,null,null,null,null,null,null,null,7,null,null,null,null,2,null,null,null,null,null,null,null,null,null,null,null,2,2,null,null,null,null,2,2,null,null,null,null,null,null,null,2,2,2,12,null,null,null,null,2,null,null,null,2,null,null,2,null,2,null,8,null,null,null,null,null,0,41]
[22,"Machtelings Eric",null,null,null,null,null,0,null,null,null,null,null,null,null,null,null,0,null,null,null,null,null,null,null,null,null,null,null,null,null,null,null,null,0,null,null,null,null,null,null,null,null,null,null,null,null,null,null,null,null,null,0,null,null,null,null,null,null,null,null,null,null,null,null,null,0,null,null,null,null,null,null,null,null,null,null,null,null,null,null,null,null,0,null,null,null,null,null,null,null,null,null,null,null,null,null,null,null,null,null,0,null,null,null,null,null,null,null,null,null,null,null,null,null,null,null,0,null,null,null,null,null,0,0]
[23,"Meuleneire Hans",null,null,null,null,null,0,null,null,null,null,null,null,null,null,null,0,null,null,null,null,null,null,null,null,null,null,null,null,null,null,null,null,0,null,null,null,null,null,null,null,null,null,null,null,null,null,null,null,null,null,0,null,null,null,null,null,null,null,null,null,null,null,null,null,0,null,null,null,null,null,null,null,null,null,null,null,null,null,null,null,null,0,null,null,null,null,null,null,null,null,null,null,null,null,null,null,null,null,null,0,null,2,null,null,null,null,null,null,null,null,null,null,null,null,null,2,null,null,null,null,null,0,2]
[24,"Meulenijzer Kevin",null,null,null,null,null,0,null,null,2,null,null,null,null,null,null,2,null,null,null,null,null,null,null,null,null,null,null,null,null,null,null,null,0,null,2,null,null,2,null,null,null,null,null,null,null,2,null,null,null,null,6,null,5,null,null,null,2,null,null,null,null,null,null,null,7,null,null,null,null,2,null,null,null,null,null,null,null,null,null,null,null,2,null,null,null,null,null,null,null,null,null,null,null,null,null,null,null,2,null,2,null,null,null,null,null,null,null,null,2,null,null,null,null,null,null,2,null,null,null,null,null,0,21]
[25,"Meulenijzer Roland",2,2,2,2,2,10,null,2,2,null,null,2,null,null,2,8,null,2,null,2,null,2,null,null,2,2,2,null,null,null,3,null,15,2,null,2,null,2,2,null,2,2,2,null,null,null,null,null,2,2,18,null,5,2,null,2,2,2,null,null,2,null,2,2,19,2,2,null,2,2,null,2,2,2,null,2,null,null,null,null,2,18,2,2,null,2,null,2,2,null,null,2,2,1,2,2,2,2,2,25,3,4,null,2,1,2,null,null,null,null,null,2,null," ",2,16,null,null,null,null,null,0,129]
[26,"Mincke Andy",null,2,2,2,null,6,null,2,null,null,2,2,null,null,null,6,null,2,null,2,null,null,2,null,2,2,null,null,null,null,3,null,13,2,2,null,null,null,null,null,null,null,null,null,null,null,null,null,null,null,4,null,null,null,null,null,null,null,null,null,null,null,null,null,0,null,null,null,null,null,null,null,null,null,null,null,null,null,null,null,null,0,null,null,null,null,null,null,null,null,null,null,null,null,null,null,null,null,null,0,null,null,null,null,null,null,null,null,null,null,null,null,null,null,null,{"$f":"SUM(CY27:DM27)","v":0},null,null,null,null,null,{"$f":"SUM(DO27:DS27)","v":0},29]
[27,"Rokegem Guy",null,null,null,null,null,0,null,null,null,2,null,2,null,null,null,4,null,null,2,2,null,null,2,null,null,null,null,null,null,null,3,null,9,null,2,null,null,null,null,null,2,2,null,null,null,1,null,null,null,2,9,null,null,null,null,null,null,null,null,2,null,null,null,null,2,null,2,null,null,2,null,null,2,null,2,null,null,null,null,null,null,8,null,null,null,null,null,null,2,null,null,null,null,null,null,null,null,null,null,2,null,null,null,null,null,null,null,null,null,null,null,null,null,null,null,0,null,null,null,null,null,0,34]
[28,"Schietecatte Bastiaan",null,null,null,null,null,0,null,null,null,null,null,null,null,null,null,0,null,null,null,null,null,null,null,null,null,null,null,null,null,null,null,null,0,null,null,null,null,null,null,null,null,null,null,null,null,null,null,null,null,null,0,null,null,null,null,null,null,null,null,null,null,null,null,null,0,null,null,null,null,null,null,null,null,null,null,null,null,null,null,null,null,0,null,null,null,null,null,null,null,null,null,null,null,null,null,null,null,null,null,0,null,null,null,null,null,null,null,null,null,null,null,null,null,null,null,0,null,null,null,null,null,0,0]
[29,"Slagmeulder Chris",2,2,2,null,2,8,null,2,2,2,2,2,2,null,null,12,null,null,null,null,null,null,2,null,2,2,null,null,2,null,3,null,11,2,2,null,null,2,2,null,2,null,2,null,null,null,null,null,2,null,14,null,null,2,null,null,2,2,null,2,2,null,null,2,12,2,2,null,2,2,null,null,2,2,null,null,null,null,null,null,null,12,2,2,null,2,null,2,null,null,null,null,2,null,null,2,null,null,null,12,3,null,null,2,null,null,null,null,2,null,null,null,null,null,null,7,null,null,null,null,null,0,88]
[30,"Thijs Bruno",null,null,null,null,null,0,null,null,null,null,null,null,null,null,null,0,null,null,null,null,null,null,null,null,null,null,null,null,null,null,null,null,0,null,null,null,null,null,null,null,null,null,null,null,null,null,null,null,null,null,0,null,null,null,null,null,null,null,null,null,null,null,null,null,0,null,null,null,null,null,null,null,null,null,null,null,null,null,null,null,null,0,null,null,null,null,null,null,null,null,null,null,null,null,null,null,null,null,null,0,null,null,null,null,null,null,null,null,null,null,null,null,null,null,null,{"$f":"SUM(CY31:DM31)","v":0},null,null,null,null,null,{"$f":"SUM(DO31:DS31)","v":0},0]
[31,"Thijs Eric",null,null,null,null,null,0,null,null,null,null,null,null,null,null,null,0,null,null,null,null,null,null,null,null,null,null,null,null,null,null,null,null,0,null,null,null,null,null,null,null,null,null,null,null,null,null,null,null,null,null,0,null,null,null,null,null,null,null,null,null,null,null,null,null,0,null,null,null,null,null,null,null,null,null,null,null,null,null,null,null,null,0,null,null,null,null,null,null,null,null,null,null,null,null,null,null,null,null,null,0,null,null,null,null,null,null,null,null,null,null,null,null,null,null,null,0,null,null,null,null,null,0,0]
[32,"Thijs José",null,null,null,null,null,0,null,null,null,null,null,null,null,null,null,0,null,null,null,null,null,null,null,null,null,null,null,null,null,null,null,null,0,null,null,null,null,null,null,null,null,null,null,null,null,null,null,null,null,null,0,null,null,null,1,null,null,null,null,null,null,null,null,null,1,null,null,null,null,null,null,null,null,null,null,null,null,null,null,null,null,0,null,null,null,null,null,null,null,null,null,null,null,null,null,null,null,null,null,0,null,null,null,null,null,null,null,null,null,null,null,null,null,null,null,0,null,null,null,null,null,0,1]
[{"$f":"A33+1","v":33},"Van Bockstaele Eddy",null,null,null,null,null,0,null,null,null,null,null,null,null,2,null,2,null,null,null,null,null,null,null,null,null,null,null,null,null,null,3,null,3,2,2,null,null,null,null,null,2,2,2,null,null,null,null,null,null,null,{"$f":"SUM(AJ34:AZ34)","v":10},null,null,null,null,2,2,2,null,2,null,null,null,2,{"$f":"SUM(BB34:BN34)","v":10},null,null,null,2,2,null,2,2,2,2,null,null,null,null,null,2,{"$f":"SUM(BP34:CE34)","v":14},2,2,null,2,null,2,2,null,null,null,null,null,2,2,2,2,2,{"$f":"SUM(CG34:CW34)","v":20},null,null,null,null,null,2,null,null,null,null,null,null,null,2,null,4,null,null,null,null,null,0,{"$f":"H34+R34+AI34+BA34+BO34+CF34+CX34+DN34+DT34","v":63}]
[34,"Van Caenegem Geert",null,2,null,null,null,2,2,null,null,null,null,null,null,null,null,2,null,null,2,2,null,null,null,null,null,2,null,null,null,null,3,null,9,2,null,2,null,null,null,null,null,null,null,null,null,2,2,null,null,null,8,null,5,2,null,null,2,2,null,null,null,null,null,null,11,null,null,null,2,null,null,null,2,null,null,2,null,2,null,null,null,8,2,2,null,null,null,2,null,null,null,null,null,null,null,2,null,null,4,12,3,null,null,null,2,null,null,null,null,null,null,2,null,null,2,9,null,null,null,null,null,0,61]
[35,"Van Cleemputte Jurgen",2,null,null,null,null,2,null,2,null,2,null,2,null,null,null,6,null,null,2,2,null,null,2,null,null,null,null,null,null,null,3,null,9,null,2,null,null,null,null,null,2,2,null,null,null,1,null,null,null,2,9,null,2,2,null,null,null,null,null,2,2,null,2,null,10,null,null,null,null,null,null,null,2,null,2,null,null,null,null,null,null,4,null,null,null,null,null,null,2,null,null,null,null,null,null,null,null,null,null,2,null,null,null,null,null,null,null,null,null,null,null,null,null,null,null,0,null,null,null,null,null,0,42]
[36,"Van De Maele Etienne",2,2,null,null,null,4,null,null,null,null,null,null,null,null,null,0,null,null,null,2,1,null,2,1,2,null,null,1,null,null,3,1,{"$f":"SUM(S37:AH37)","v":13},2,null,null,1,null,null,null,null,null,2,1,null,null,null,1,null,2,9,1,null,null,1,2,null,2,null,null,null,1,null,null,7,2,2,1,2,2,1,null,2,null,null,2,2,2,null,2,null,20,null,2,null,null,2,2,2,null,1,null,null,null,null,null,null,null,null,9,3,null,1,null,2,2,1,null,null,null,null,null,1,null,null,10,null,null,null,null,null,0,72]
[37,"Van De Maele Geert",2,2,null,2,2,8,2,null,2,null,null,null,2,null,null,6,null,null,2,2,null,2,2,null,2,null,null,null,null,null,null,null,10,null,2,null,null,null,null,null,2,2,null,null,null,2,2,null,null,2,12,null,5,null,null,null,2,null,null,null,null,null,null,2,9,null,2,null,null,null,null,null,2,null,null,null,null,2,null,null,null,6,2,2,null,null,null,null,null,null,null,null,null,null,null,2,2,null,null,8,null,null,null,null,null,null,null,null,null,null,null,null,null,null,null,0,null,null,null,null,null,0,59]
[38,"Van De Maele Stefan",null,null,null,null,2,2,null,null,null,null,null,null,null,null,null,0,null,null,null,null,null,null,null,null,null,null,null,null,null,null,null,null,0,null,null,null,null,null,null,null,null,null,null,null,null,null,null,null,null,null,0,null,null,null,null,null,null,null,null,null,null,null,null,null,0,null,null,null,null,null,null,null,null,null,null,null,null,null,null,null,null,0,null,null,null,null,null,null,null,null,null,null,null,null,null,null,null,null,null,0,null,null,null,null,null,null,null,null,null,null,null,null,null,null,null,0,null,null,null,null,null,0,2]
[39,"Van de Velde Herman",2,null,null,2,2,6,null,null,2,null,2,null,2,null,null,6,null,null,2,2,null,null,2,null,2,null,null,null,null,null,3,null,11,2,2,null,null,null,2,null,2,null,2,null,null,2,2,null,null,2,16,null,5,2,null,2,null,2,null,null,2,null,null,2,15,null,2,null,2,null,null,null,2,null,2,null,null,2,null,null,null,10,null,2,null,2,null,null,2,null,null,null,2,null,2,2,2,2,null,16,3,null,null,null,2,null,null,null,2,null,2,null,null,2,null,11,null,null,null,null,null,0,91]
[40,"Van de Velde Ivan",2,null,null,2,2,6,2,2,2,2,2,2,2,2,null,16,null,2,2,null,null,2,2,null,2,null,null,null,2,null,3,null,15,2,2,null,null,2,2,null,2,2,2,null,null,null,null,null,2,2,18,null,5,2,null,null,2,2,null,null,null,null,null,null,11,2,null,null,null,null,null,2,2,2,null,null,null,2,null,null,2,12,null,null,null,null,null,null,null,null,null,null,null,null,null,null,null,null,null,0,null,null,null,null,null,null,null,null,null,null,null,null,null,null,null,0,null,null,null,null,null,0,78]
[41,"Van de Velde Jarno",null,null,null,null,null,0,null,null,null,null,null,null,null,null,null,0,null,null,null,null,null,null,null,null,null,null,null,null,null,null,null,null,0,null,null,null,null,null,null,null,null,null,null,null,null,null,null,null,null,null,0,null,null,null,null,null,null,null,null,null,null,null,null,null,0,null,null,null,null,null,null,null,null,null,null,null,null,null,null,null,null,0,null,null,null,null,null,2,null,null,null,null,null,null,null,null,null,null,null,2,null,null,null,null,null,null,null,null,null,null,null,null,null,null,null,0,null,null,null,null,null,0,2]
[42,"Van De Velde Jens",null,null,null,null,null,0,null,null,null,null,null,null,null,null,null,0,null,null,null,null,null,null,null,null,null,null,null,null,null,null,null,null,0,null,null,null,null,null,null,null,null,null,null,null,null,null,null,null,null,null,0,null,null,null,null,null,null,null,null,null,null,null,null,null,0,null,null,null,null,null,null,null,null,null,null,null,null,null,null,null,null,0,null,null,null,null,null,null,null,null,null,null,null,null,null,null,null,null,null,0,null,null,null,null,null,null,null,null,null,null,null,null,null,null,null,{"$f":"SUM(CY43:DM43)","v":0},null,null,null,null,null,{"$f":"SUM(DO43:DS43)","v":0},0]
[43,"Van Der Gucht Bas",null,null,null,null,null,0,null,null,null,null,null,null,null,null,null,0,null,null,null,null,null,null,null,null,null,null,null,null,null,null,null,null,0,null,null,null,null,null,null,null,null,null,null,null,null,null,null,null,null,null,0,null,null,null,null,null,null,null,null,null,null,null,null,null,0,null,null,null,null,null,null,null,null,null,null,null,null,null,null,null,null,0,null,null,null,null,null,null,null,null,null,null,null,null,null,null,null,null,null,0,null,null,null,null,null,null,null,null,null,null,null,null,null,null,null,0,null,null,null,null,null,0,0]
[44,"Van Der Gucht Clo",2,2,2,2,2,10,2,2,2,null,null,2,2,2,2,14,null,2,2,2,null,null,null,1,2,2,2,null,null,2,3,null,18,null,null,null,null,null,null,null,null,null,null,null,2,2,4,null,2,null,10,null,5,2,null,2,2,2,null,null,2,null,null,2,17,2,2,null,null,null,null,null,null,null,null,null,null,null,null,null,null,4,2,4,null,null,null,2,2,null,null,2,2,null,null,null,null,2,4,20,3,4,null,2,2,null,null,null,2,null,null,null,null,2,2,17,null,null,null,null,null,0,110]
[45,"Van Der Gucht Sam",null,null,null,null,null,0,null,null,null,null,null,null,null,null,null,0,null,null,null,null,null,null,null,null,null,null,null,null,null,null,null,null,0,null,null,null,null,null,null,null,null,null,null,null,null,null,null,null,null,null,0,null,null,null,null,null,null,null,null,null,null,null,null,null,0,null,null,null,null,null,null,null,null,null,null,null,null,null,null,null,null,0,null,null,null,null,null,null,null,null,null,null,null,null,null,null,null,null,null,0,null,null,null,null,null,null,null,null,null,null,null,null,null,null,null,0,null,null,null,null,null,0,0]
[46,"Van Elsuwege Robin",null,null,null,null,null,0,null,null,2,null,null,null,2,null,null,4,null,null,null,null,null,null,null,null,null,null,null,null,null,null,null,null,0,2,null,null,null,null,null,null,2,null,2,null,null,null,null,null,null,2,8,null,null,null,null,null,2,null,null,null,2,null,null,null,4,null,null,null,null,null,null,null,null,null,null,null,null,2,null,null,null,2,null,null,null,null,null,null,2,null,null,2,null,null,null,null,null,null,null,4,null,null,null,null,null,null,null,null,null,null,null,null,null,null,null,{"$f":"SUM(CY47:DM47)","v":0},null,null,null,null,null,{"$f":"SUM(DO47:DS47)","v":0},22]
[47,"Van Gansbeke Robin",null,null,null,null,null,0,null,null,2,null,null,null,2,null,null,4,null,null,null,null,null,null,null,null,null,null,null,null,null,null,null,null,0,null,null,null,null,null,null,null,null,null,2,null,null,null,null,null,null,2,4,null,null,null,null,null,null,null,null,null,null,null,null,null,0,null,2,null,null,null,null,null,null,null,null,null,null,2,null,null,null,4,2,null,null,2,null,null,2,null,null,2,null,null,null,null,null,null,null,8,null,null,null,null,null,null,null,null,null,null,null,null,null,null,null,{"$f":"SUM(CY48:DM48)","v":0},null,null,null,null,null,{"$f":"SUM(DO48:DS48)","v":0},20]
[48,"Van Lierde Ronny",null,null,null,null,null,0,null,null,null,null,null,null,null,null,null,0,null,null,null,null,null,2,null,null,2,null,null,null,null,null,null,null,4,2,2,null,null,null,null,null,null,null,null,null,null,null,null,null,null,null,4,null,5,null,null,2,null,null,null,null,null,null,null,null,7,null,null,null,2,null,null,null,null,null,null,null,null,null,null,null,null,2,2,null,null,2,null,2,null,null,null,null,null,null,null,null,null,null,null,6,null,null,null,2,null,null,null,null,null,null,null,null,null,null,2,4,null,null,null,null,null,0,27]
[49,"Van Waeyenberge Clebert",2,2,2,2,2,10,2,3,2,2,2,2,2,2,null,17,null,2,2,null,1,2,2,1,2,2,null,1,2,null,3,1,{"$f":"SUM(S50:AH50)","v":21},2,2,2,1,2,2,1,null,1,2,1,2,2,4,1,null,2,27,1,5,2,1,2,2,null,null,2,2,1,2,2,22,null,2,1,2,2,1,null,null,null,null,null,null,null,null,2,null,10,4,2,null,null,2,4,2,null,1,4,2,1,null,2,2,2,4,32,3,null,1,2,2,null,1,1,null,null,null,2,1,2,2,17,null,null,null,null,null,0,156]
[null,null,{"$f":"COUNT(C2:C50)","v":18},{"$f":"COUNT(D2:D50)","v":17},{"$f":"COUNT(E2:E50)","v":13},{"$f":"COUNT(F2:F50)","v":12},{"$f":"COUNT(G2:G50)","v":17},{"$f":"COUNTIFS(H2:H50,\">0\")","v":25},{"$f":"COUNT(I2:I50)","v":12},15,21,12,10,16,14,11,5,{"$f":"COUNTIFS(R2:R50,\">0\")","v":30},{"$f":"COUNT(S2:S50)","v":2},10,13,17,4,13,18,6,19,13,3,5,8,3,23,5,{"$f":"COUNTIFS(AI2:AI50,\">0\")","v":29},{"$f":"COUNT(AJ2:AJ50)","v":21},21,7,6,14,12,1,19,15,17,7,11,17,15,{"$f":"COUNT(AX2:AX50)","v":5},12,19,{"$f":"COUNTIFS(BA2:BA50,\">0\")","v":33},{"$f":"COUNT(BB2:BB50)","v":6},22,15,6,11,18,15,0,9,14,4,9,11,{"$f":"COUNTIFS(BO2:BO50,\">0\")","v":30},{"$f":"COUNT(BP2:BP50)","v":10},13,4,14,14,4,10,20,10,8,6,6,16,2,4,9,{"$f":"COUNTIFS(CF2:CF50,\">0\")","v":30},{"$f":"COUNT(CG2:CG50)","v":19},17,1,12,4,16,17,0,5,12,12,4,6,15,15,14,14,{"$f":"COUNTIFS(CX2:CX50,\">0\")","v":30},{"$f":"COUNT(CY2:CY50)","v":15},{"$f":"COUNT(CZ2:CZ50)","v":7},{"$f":"COUNT(DA2:DA50)","v":4},9,12,10,4,2,9,1,7,12,5,14,14,{"$f":"COUNTIFS(DN2:DN50,\">0\")","v":23},{"$f":"COUNT(DO2:DO50)","v":0},{"$f":"COUNT(DP2:DP50)","v":0},{"$f":"COUNT(DQ2:DQ50)","v":0},{"$f":"COUNT(DR2:DR50)","v":0},{"$f":"COUNT(DS2:DS50)","v":0},{"$f":"COUNTIFS(DT2:DT50,\">0\")","v":0},{"$f":"COUNTIFS(DU2:DU50,\">0\")","v":40}]

{"sheet":"Heren - Kms","index":1,"n_rows":51,"n_cols":121,"rows_kept":51,"cut":false,"hidden":false,"merged":[]}
[null,"2015 HEREN - Kms","2015-02-14","2015-02-15","2015-02-21","2015-02-22","2015-02-28","Februari","2015-03-01","2015-03-07","2015-03-08","2015-03-14","2015-03-15","2015-03-21","2015-03-22","2015-03-28","2015-03-29","Maart","2015-04-02","2015-04-04","2015-04-05","2015-04-06","2015-04-09","2015-04-11","2015-04-12","2015-04-16","2015-04-18","2015-04-19","2015-04-23","2015-04-25","2015-04-26","2015-04-30","April","2015-05-01","2015-05-02","2015-05-03","2015-05-07","2015-05-09","2015-05-10","2015-05-12","2015-05-14","2015-05-16","2015-05-17","2015-05-21","2015-05-23","2015-05-24","2015-05-25","2015-05-28","2015-05-30","2015-05-31","Mei","2015-06-04","2015-06-06","2015-06-07","2015-06-11","2015-06-13","2015-06-14","2015-06-18","2015-06-20","2015-06-21","2015-06-25","2015-06-27","2015-06-28","Juni","2015-07-04","2015-07-05","2015-07-09","2015-07-11","2015-07-12","2015-07-16","2015-07-18","2015-07-19","2015-07-21","2015-07-23","2015-07-23","2015-07-25","2015-07-26","27&28/07/2015","2015-07-30","2015-07-30","Juli","2015-08-01","2015-08-02","2015-08-05","2015-08-06","2015-08-06","2015-08-08","2015-08-09","2015-08-13","2015-08-13","2015-08-15","2015-08-16","2015-08-20","2015-08-21","2015-08-22","2015-08-23","2015-08-29","2015-08-30","Augustus","2015-09-02","2015-09-03","2015-09-05","2015-09-06","2015-09-09","2015-09-10","2015-09-12","2015-09-13","2015-09-18","2015-09-19","2015-09-20","2015-09-24","2015-09-26","2015-09-27","September","561-BRUGGENROUTE","513 - HEIRNISROUTE","523 - PARKINGROUTE","512 - HEIRNISROUTE 1","524 - AMALRIKROUTE","Permanenten","EINDSTAND"]
[1,"Anseau Stefan",null,null,null,null,null,{"$f":"SUM(C2:F2)","v":0},null,null,null,null,null,null,null,null,null,{"$f":"SUM(I2:Q2)","v":0},null,null,null,null,null,null,null,null,null,null,null,null,null,null,{"$f":"SUM(S2:AE2)","v":0},null,null,null,null,null,null,null,null,null,null,null,null,null,null,null,null,null,{"$f":"SUM(AH2:AX2)","v":0},null,null,null,null,null,null,null,null,null,null,null,null,{"$f":"SUM(AZ2:BK2)","v":0},null,null,null,null,null,null,null,null,null,null,null,null,null,null,null,null,{"$f":"SUM(BM2:CB2)","v":0},null,null,null,null,null,null,null,null,null,null,null,null,null,null,null,null,null,{"$f":"SUM(CD2:CT2)","v":0},null,null,null,null,null,null,null,null,null,null,null,null,null,null,{"$f":"SUM(CV2:DI2)","v":0},null,null,null,null,null,{"$f":"SUM(DK2:DO2)","v":0},{"$f":"H2+R2+AG2+AY2+BL2+CC2+CU2+DJ2+DP2","v":0}]
[{"$f":"A2+1","v":2},"Baekelandt James",null,null,null,35,null,35,null,null,50,null,null,null,null,null,null,50,null,null,null,null,null,null,80,null,null,null,null,null,null,null,80,null,null,null,null,75,null,null,null,null,null,null,null,null,null,null,null,null,75,null,null,null,null,null,null,null,null,null,null,null,null,0,null,null,null,null,null,null,null,null,null,null,null,null,null,null,null,null,0,null,null,null,null,null,null,null,null,null,null,null,null,null,null,null,null,null,0,null,null,null,null,null,null,null,null,null,null,null,null,null,null,0,null,null,null,null,null,0,240]
[{"$f":"A3+1","v":3},"Baeyens Hendrik",null,null,null,null,null,0,null,null,60,null,null,null,null,null,null,60,null,null,null,null,null,null,null,null,null,null,null,null,40,null,40,null,null,50,null,null,60,null,null,85,null,null,null,62,null,null,null,null,257,null,null,null,null,null,null,null,null,null,null,null,null,0,null,null,null,null,null,null,null,null,null,null,null,null,null,null,null,null,0,null,null,null,null,null,null,null,null,null,null,null,null,null,null,null,null,null,0,null,null,null,null,null,null,null,null,null,null,null,null,null,null,0,null,null,null,null,null,0,357]
[4,"Broekaert Philip",50,40,40,null,50,{"$f":"SUM(C5:G5)","v":180},40,50,60,75,40,null,null,null,null,265,null,null,null,105,null,200,80,null,105,50,null,null,65,null,605,80,null,null,null,null,60,null,105,105,null,30,110,80,90,null,null,null,660,null,30,75,null,null,40,null,null,60,null,null,null,205,null,null,null,60,75,null,70,70,null,null,null,null,60,null,null,null,335,75,75,null,null,null,75,null,null,null,70,60,null,null,null,50,null,null,405,null,null,null,null,null,null,null,null,null,40,35,null,75,50,200,null,null,null,null,null,0,2855]
[5,"Cantaert Steven",null,null,null,null,null,{"$f":"SUM(C6:G6)","v":0},null,null,null,null,null,null,null,null,null,0,null,null,null,null,null,null,null,null,null,null,null,null,65,null,65,null,null,null,null,null,null,null,null,null,null,null,null,null,null,null,null,null,0,null,null,null,null,null,null,null,null,null,null,null,null,0,null,null,null,null,null,null,null,null,null,null,null,null,null,null,null,null,0,null,null,null,null,null,null,null,null,null,null,null,null,null,null,null,null,null,0,null,null,null,null,null,null,null,null,null,null,null,null,null,null,0,null,null,null,null,null,0,65]
[6,"Daneels Pieter",50,null,null,null,null,50,null,null,null,null,null,null,null,null,null,0,null,null,null,null,null,null,null,null,null,null,null,null,null,null,0,null,75,null,null,null,null,null,null,null,null,null,null,null,null,null,null,null,75,null,null,null,null,null,null,null,null,null,null,null,null,0,null,null,null,null,null,null,null,null,null,null,null,null,null,null,null,null,0,null,null,null,null,null,null,null,null,null,null,null,null,null,null,null,null,null,0,null,null,null,null,null,null,null,null,null,null,null,null,null,null,{"$f":"SUM(CV7:DI7)","v":0},null,null,null,null,null,{"$f":"SUM(DK7:DO7)","v":0},125]
[7,"De Geyter Victor",null,null,null,null,null,0,null,null,null,null,null,75,null,null,null,75,null,null,null,null,null,null,null,null,null,50,null,null,null,null,50,80,75,null,null,null,null,null,65,25,null,null,40,null,null,null,25,40,350,null,30,25,null,null,40,null,null,35,null,null,null,130,40,30,null,60,45,null,null,null,30,37,null,null,null,null,null,50,292,25,25,null,null,null,null,null,null,null,70,40,null,null,25,30,40,52,307,50,null,null,null,25,null,null,55,null,null,70,null,75,50,325,null,null,null,null,null,0,1529]
[8,"De Groote Dimitri",null,null,null,null,null,0,null,null,60,null,null,null,144,null,null,204,null,null,null,null,null,null,null,null,null,null,null,null,null,null,0,null,null,null,null,null,null,null,null,null,null,null,null,null,null,null,null,null,0,null,30,null,null,null,40,null,null,null,null,null,null,70,null,null,null,null,null,null,null,null,null,null,null,null,60,null,null,null,60,75,null,null,null,null,null,null,null,null,null,null,null,null,75,null,null,null,150,null,null,null,null,null,null,null,null,null,null,null,null,null,null,0,null,null,null,null,null,0,484]
[9,"De Guisme Christiaan",null,40,40,null,null,80,40,50,40,null,null,null,null,null,null,130,null,null,null,null,null,40,35,null,40,null,null,null,null,null,115,null,null,null,null,50,50,null,40,null,40,null,null,null,null,null,25,40,245,null,30,25,null,null,null,null,null,35,null,null,null,90,null,null,null,null,null,null,40,45,85,55,null,35,40,null,null,50,350,50,null,50,54,null,50,40,null,null,70,60,null,null,null,30,null,null,404,null,null,null,null,null,null,null,null,null,null,null,null,null,50,50,null,null,null,null,null,0,1464]
[10,"De Loor Pascal",null,null,40,null,50,90,null,50,60,75,40,100,50,150,null,525,null,null,null,null,null,null,null,30,40,50,30,70,65,30,{"$f":"SUM(S11:AF11)","v":315},80,null,75,30,105,60,null,105,105,60,30,110,null,90,30,77,40,997,30,30,null,30,40,null,null,null,null,null,null,null,130,null,null,30,60,75,30,70,70,null,null,40,null,60,225,null,null,660,null,null,null,null,30,75,60,null,30,70,100,30,65,85,75,150,null,770,50,30,null,45,null,30,null,75,null,40,35,30,75,null,410,null,null,null,null,null,0,3897]
[11,"De Meyer Erwin",50,40,40,50,50,230,40,null,null,75,null,null,null,65,60,240,null,null,null,null,null,40,80,null,40,50,null,null,65,null,275,50,50,null,null,75,null,null,null,null,null,null,40,null,40,null,null,null,255,null,30,50,null,40," ",null,null,null,null,null,null,120,null,null,null,null,null,null,null,45,85,null,null,null,40,null,null,50,220,75,60,null,54,null,null,null,null,null,null,null,null,null,75,50,150,60,524,50,null,null,null,50,null,null,null,null,null,75,null,75,50,300,null,null,null,null,null,0,2164]
[12,"De Meyere Rudy",null,40,40,50,50,180,60,80,60,null,null,75,115,150,60,600,30,120,60,105,30,100,80,30,65,50,30,145,65,30,{"$f":"SUM(S13:AF13)","v":940},50,140,80,30,105,60,null,105,105,60,30,110,80,90,30,104,115,1294,30,30,75,30,150,40,null,90,60,30,90,120,745,180,null,30,60,75,30,70,70,110,null,40,60,60,225,30,null,1040,105,60,null,null,30,105,60,null,30,105,60,30,65,85,75,150,60,1020,50,30,105,85,50,30,null,null,null,60,75,30,75,50,640,null,null,null,null,null,0,6459]
[13,"De Roeck Christian",50,40,40,null,50,180,40,50,null,75,40,100,null,150,null,455,null,70,null,105,null,60,null,null,105,50,null,70,65,null,525,80,null,null,30,null,null,null,105,null,null,30,110,80,90,null,null,null,525,30,30,null,null,40,40,null,null,null,null,90,120,350,null,null,null,60,75,null,null,70,null,null,null,null,60,null,null,50,315,null,null,null,54,null,null,null,null,null,null,null,null,null,null,50,150,85,339,50,null,80,45,50,null,null,null,null,null,null,30,75,50,{"$f":"SUM(CV14:DI14)","v":380},null,null,null,null,null,{"$f":"SUM(DK14:DO14)","v":0},3069]
[14,"De Smet Werner",50,null,null,null,null,50,null,null,null,75,null,75,null,null,null,150,null,null,60,70,null,null,60,null,null,null,null,null,65,null,255,null,75,null,null,null,null,null,null,85,null,null,null,88,null,null,null,85,333,null,null,75,null,null,null,null,null,60,null,90,null,225,null,null,null,null,null,null,null,70,null,null,null,null,null,null,null,null,70,null,null,null,null,null,null,null,null,null,null,null,null,null,null,null,null,null,0,null,null,null,null,null,null,null,null,null,null,null,null,null,null,0,null,null,null,null,null,0,1083]
[15,"De Vos Samuel",50,40,40,50,50,230,60,50,60,75,40,100,75,150,60,670,null,null,60,105,null,200,80,null,105,50,null,null,65,null,665,80,140,75,null,105,60,null,105,105,40,null,110,80,90,null,77,115,1182,null,30,50,null,150,40,null,90,60,null,90,120,630,180,60,null,60,75,null,70,70,null,null,null,60,60,null,null,null,635,75,75,null,54,null,75,90,null,null,175,100,null,65,85,75,150,85,1104,50,null,80,70,85,null,null,75,40,40,35,null,75,50,600,null,null,null,null,null,0,5716]
[16,"De Vrieze Danny",null,null,null,null,null,0,null,null,null,null,null,null,null,null,null,0,null,null,null,null,null,null,null,null,null,null,null,null,null,null,0,null,null,null,null,null,null,null,null,null,null,null,null,null,null,null,null,null,0,null,null,null,null,null,null,null,null,null,null,null,null,0,null,null,null,null,null,null,null,null,null,null,null,null,null,null,null,null,0,null,50,null,54,null,null,null,null,null,null,null,null,null,null,null,null,null,104,50,null,null,null,50,null,null,null,null,null,null,null,null,null,100,null,null,null,null,null,0,204]
[17,"De Waegenaere Gino",50,40,null,null,50,140,null,null,60,null,75,null,null,null,null,135,null,120,60,60,null,null,80,null,65,null,null,null,65,null,450,50,null,null,null,null,null,null,70,null,60,null,null,80,50,null,null,115,425,null,30,null,null,null,40,null,null,null,null,null,null,70,null,60,null,null,null,null,null,70,null,55,null,null,60,null,null,50,295,50,60,null,null,null,null,60,null,null,null,null,null,null,null,50,null,60,280,null,null,null,null,null,null,null,null,null,null,null,null,null,null,{"$f":"SUM(CV18:DI18)","v":0},null,null,null,null,null,{"$f":"SUM(DK18:DO18)","v":0},1795]
[18,"Du Tranoix Freddy",50,40,null,50,50,190,40,50,40,null,null,75,50,65,null,320,null,40,60,40,null,60,60,null,null,null,null,80,40,null,380,50,75,50,null,75,50,null,70,null,40,null,65,55,50,null,52,85,717,null,null,null,null,null,null,null,50,60,null,45,40,195,40,80,null,null,null,null,70,45,85,55,null,60,null,null,null,50,485,75,50,null,54,null,75,40,null,null,null,60,null,null,100,null,40,40,534,50,null,80,45,50,null,70,55,null,40,75,null,75,50,590,null,null,null,null,null,0,3411]
[19,"Ghijs Koen",null,null,null,null,null,0,null,null,null,null,null,null,null,null,null,0,null,null,null,null,null,null,null,null,null,null,null,null,null,null,0,null,null,null,null,null,null,null,null,null,null,null,null,null,null,null,null,null,0,null,null,null,null,null,null,null,null,null,null,null,null,0,null,null,null,null,null,null,null,null,null,null,null,null,null,null,null,null,0,null,null,null,null,null,null,null,null,null,null,null,null,null,null,null,null,null,0,null,null,null,null,null,null,null,null,null,null,null,null,null,null,0,null,null,null,null,null,0,0]
[20,"Koops Arie",50,40,40,null,50,180,null,50,60,75,null,50,115,150,null,500,30,120,null,60,30,100,null,30,115,null,30,145,null,30,{"$f":"SUM(S21:AF21)","v":690},50,75,null,30,105,null,null,105,105,60,30,110,null,90,30,52,115,957,30,30,null,30,150,null,null,90,null,30,90,null,450,180,null,null,null,null,null,70,null,110,null,40,60,null,null,30,null,490,null,null,null,null,null,null,null,null,30,70,null,null,null,100,null,null,60,260,null,null,null,null,null,null,null,null,null,60,75,null,75,50,{"$f":"SUM(CV21:DI21)","v":260},null,null,null,null,null,{"$f":"SUM(DK21:DO21)","v":0},3787]
[21,"Lauwaert Kris",null,null,null,null,null,0,null,null,null,null,null,null,null,null,null,0,null,null,null,null,null,null,null,null,null,null,null,null,null,null,0,null,null,50,null,50,null,null,null,null,55,null,null,62,35,null,52,null,304,null,30,null,null,null,65,null,null,null,null,null,null,95,null,null,null,null,45,null,null,null,null,null,null,null,null,null,null,null,45,50,null,null,null,null,40,55,null,null,null,null,null,null,null,50,70,50,315,null,null,null,55,null,null,null,70,null,null,50,null,50,null,225,null,null,null,null,null,0,984]
[22,"Machtelings Eric",null,null,null,null,null,0,null,null,null,null,null,null,null,null,null,0,null,null,null,null,null,null,null,null,null,null,null,null,null,null,0,null,null,null,null,null,null,null,null,null,null,null,null,null,null,null,null,null,0,null,null,null,null,null,null,null,null,null,null,null,null,0,null,null,null,null,null,null,null,null,null,null,null,null,null,null,null,null,0,null,null,null,null,null,null,null,null,null,null,null,null,null,null,null,null,null,0,null,null,null,null,null,null,null,null,null,null,null,null,null,null,0,null,null,null,null,null,0,0]
[23,"Meuleneire Hans",null,null,null,null,null,0,null,null,null,null,null,null,null,null,null,0,null,null,null,null,null,null,null,null,null,null,null,null,null,null,0,null,null,null,null,null,null,null,null,null,null,null,null,null,null,null,null,null,0,null,null,null,null,null,null,null,null,null,null,null,null,0,null,null,null,null,null,null,null,null,null,null,null,null,null,null,null,null,0,null,null,null,null,null,null,null,null,null,null,null,null,null,null,null,null,null,0,null,null,null,null,null,null,null,null,null,null,null,null,null,null,0,null,null,null,null,null,0,0]
[24,"Meulenijzer Kevin",null,null,null,null,null,0,null,null,40,null,null,null,null,null,null,40,null,null,null,null,null,null,null,null,null,null,null,null,null,null,0,null,null,50,null,50,null,null,null,null,null,null,null,62,null,null,null,null,162,null,30,null,null,null,65,null,null,null,null,null,null,95,null,null,null,null,45,null,null,null,null,null,null,null,null,null,null,null,45,null,null,null,null,null,null,null,null,null,null,null,null,null,null,null,70,null,70,null,null,null,null,null,null,null,50,null,null,null,null,null,null,50,null,null,null,null,null,0,462]
[25,"Meulenijzer Roland",50,40,40,50,50,230,null,50,60,null,null,75,null,null,60,245,null,120,null,60,null,100,null,null,65,50,null,null,65,null,460,50,null,50,null,75,60,null,70,105,60,null,null,null,null,null,52,115,637,null,30,75,null,150,40,null,null,60,null,90,120,565,180,60,null,60,45,null,70,70,110,null,40,null,null,null,null,50,685,50,60,null,54,null,105,60,null,null,70,60,30,65,85,75,150,60,924,50,null,105,85,50,null,null,null,null,null,75,null,null,50,415,null,null,null,null,null,0,4161]
[26,"Mincke Andy",null,40,40,50,null,130,null,50,null,null,75,100,null,null,null,225,null,120,null,60,null,null,80,null,65,50,null,null,65,null,440,50,140,null,null,null,null,null,null,null,null,null,null,null,null,null,null,null,190,null,null,null,null,null,null,null,null,null,null,null,null,0,null,null,null,null,null,null,null,null,null,null,null,null,null,null,null,null,0,null,null,null,null,null,null,null,null,null,null,null,null,null,null,null,null,null,0,null,null,null,null,null,null,null,null,null,null,null,null,null,null,{"$f":"SUM(CV27:DI27)","v":0},null,null,null,null,null,{"$f":"SUM(DK27:DO27)","v":0},985]
[27,"Rokegem Guy",null,null,null,null,null,0,null,null,null,75,null,75,null,null,null,150,null,null,60,70,null,null,60,null,null,null,null,null,65,null,255,null,75,null,null,null,null,null,70,85,null,null,null,88,null,null,null,85,403,null,null,null,null,null,null,null,60,null,null,null,null,60,null,80,null,null,75,null,null,70,null,55,null,null,null,null,null,null,280,null,null,null,null,null,null,80,null,null,null,null,null,null,null,null,null,null,80,null,null,null,null,null,null,null,null,null,null,null,null,null,null,0,null,null,null,null,null,0,1228]
[28,"Schietecatte Bastiaan",null,null,null,null,null,0,null,null,null,null,null,null,null,null,null,0,null,null,null,null,null,null,null,null,null,null,null,null,null,null,0,null,null,null,null,null,null,null,null,null,null,null,null,null,null,null,null,null,0,null,null,null,null,null,null,null,null,null,null,null,null,0,null,null,null,null,null,null,null,null,null,null,null,null,null,null,null,null,0,null,null,null,null,null,null,null,null,null,null,null,null,null,null,null,null,null,0,null,null,null,null,null,null,null,null,null,null,null,null,null,null,0,null,null,null,null,null,0,0]
[29,"Slagmeulder Chris",50,40,40,null,50,180,null,50,60,75,40,100,75,null,null,400,null,null,null,null,null,null,80,null,65,50,null,70,65,null,330,50,110,null,null,105,60,null,70,null,60,null,null,null,null,null,52,null,507,null,null,50,null,null,40,null,50,60,null,null,40,240,40,110,null,60,75,null,null,70,110,null,null,null,null,null,null,null,465,75,40,null,54,null,50,null,null,null,null,60,null,null,100,null,null,null,379,50,null,105,null,null,null,null,75,null,null,null,null,null,null,230,null,null,null,null,null,0,2731]
[30,"Thijs Bruno",null,null,null,null,null,0,null,null,null,null,null,null,null,null,null,0,null,null,null,null,null,null,null,null,null,null,null,null,null,null,0,null,null,null,null,null,null,null,null,null,null,null,null,null,null,null,null,null,0,null,null,null,null,null,null,null,null,null,null,null,null,0,null,null,null,null,null,null,null,null,null,null,null,null,null,null,null,null,0,null,null,null,null,null,null,null,null,null,null,null,null,null,null,null,null,null,0,null,null,null,null,null,null,null,null,null,null,null,null,null,null,{"$f":"SUM(CV31:DI31)","v":0},null,null,null,null,null,{"$f":"SUM(DK31:DO31)","v":0},0]
[31,"Thijs Eric",null,null,null,null,null,0,null,null,null,null,null,null,null,null,null,0,null,null,null,null,null,null,null,null,null,null,null,null,null,null,0,null,null,null,null,null,null,null,null,null,null,null,null,null,null,null,null,null,0,null,null,null," ",null,null,null,null,null,null,null,null,0,null,null,null,null,null,null,null,null,null,null,null,null,null,null,null,null,0,null,null,null,null,null,null,null,null,null,null,null,null,null,null,null,null,null,0,null,null,null,null,null,null,null,null,null,null,null,null,null,null,0,null,null,null,null,null,0,0]
[32,"Thijs José",null,null,null,null,null,0,null,null,null,null,null,null,null,null,null,0,null,null,null,null,null,null,null,null,null,null,null,null,null,null,0,null,null,null,null,null,null,null,null,null,null,null,null,null,null,null,null,null,0,null,null,null,30,null,null,null,null,null,null,null,null,30,null,null,null,null,null,null,null,null,null,null,null,null,null,null,null,null,0,null,null,null,null,null,null,null,null,null,null,null,null,null,null,null,null,null,0,null,null,null,null,null,null,null,null,null,null,null,null,null,null,0,null,null,null,null,null,0,30]
[33,"Van Bockstaele Eddy",null,null,null,null,null,0,null,null,null,null,null,null,null,40,null,40,null,null,null,null,null,null,null,null,null,null,null,null,40,null,{"$f":"SUM(S34:AE34)","v":40},30,50,null,null,null,null,null,40,40,40,null,null,null,null,null,null,null,{"$f":"SUM(AH34:AX34)","v":200},null,null,null,null,40,40,null,60,null,null,null,40,{"$f":"SUM(AZ34:BK34)","v":180},null,null,null,60,45,null,40,45,60,37,null,null,null,null,null,50,{"$f":"SUM(BM34:CB34)","v":337},50,40,null,32,null,50,40,null,null,null,null,null,65,85,75,40,40,{"$f":"SUM(CD34:CT34)","v":517},null,null,null,null,50,null,null,null,null,null,null,null,40,null,90,null,null,null,null,null,0,{"$f":"H34+R34+AG34+AY34+BL34+CC34+CU34+DJ34+DP34","v":1404}]
[34,"Van Caenegem Geert",null,40,null,null,null,40,60,null,null,null,null,null,null,null,null,60,null,null,60,60,null,null,null,null,null,50,null,null,65,null,235,30,null,50,null,null,null,null,null,null,null,null,null,55,40,null,null,null,175,null,30,50,null,null,40,null,null,null,null,null,null,120,null,null,null,60,null,null,null,45,null,null,40,null,40,null,null,null,185,50,60,null,null,null,50,null,null,null,null,null,null,null,25,null,null,37,222,50,null,null,45,null,null,null,null,null,null,35,null,null,50,180,null,null,null,null,null,0,1217]
[35,"Van Cleemputte Jurgen",50,null,null,null,null,50,null,50,null,75,null,75,null,null,null,200,null,null,60,70,null,null,60,null,null,null,null,null,65,null,255,null,75,null,null,null,null,null,70,85,null,null,null,88,null,null,null,85,403,null,105,75,null,null,null,null,60,60,null,90,null,390,null,null,null,null,null,null,null,70,null,55,null,null,null,null,null,null,125,null,null,null,null,null,null,80,null,null,null,null,null,null,null,null,null,null,80,null,null,null,null,null,null,null,null,null,null,null,null,null,null,0,null,null,null,null,null,0,1503]
[36,"Van De Maele Etienne",50,40,null,null,null,90,null,null,null,null,null,null,null,null,null,0,null,null,null,60,30,null,35,30,65,null,30,null,40,30,{"$f":"SUM(S37:AF37)","v":320},50,null,null,30,null,null,null,null,null,60,30,null,null,null,30,null,115,315,30,null,null,30,150,null,null,null,null,30,null,null,240,40,40,30,60,75,30,null,45,null,null,40,60,60,null,30,null,510,null,60,null,null,30,50,60,null,30,null,null,null,null,null,null,null,null,230,30,30,null,45,50,30,null,null,null,null,null,30,null,null,215,null,null,null,null,null,0,1920]
[37,"Van De Maele Geert",50,40,null,50,50,190,60,null,60,null,null,null,75,null,null,195,null,null,60,60,null,60,80,null,65,null,null,null,null,null,325,null,75,null,null,null,null,null,70,85,null,null,null,80,50,null,null,115,475,null,30,null,null,null,40,null,null,null,null,null,120,190,null,60,null,null,null,null,null,45,null,null,null,null,60,null,null,null,165,75,60,null,null,null,null,null,null,null,null,null,null,null,75,50,null,null,260,null,null,null,null,null,null,null,null,null,null,null,null,null,null,0,null,null,null,null,null,0,1800]
[38,"Van De Maele Stefan",null,null,null,null,50,50,null,null,null,null,null,null,null,null,null,0,null,null,null,null,null,null,null,null,null,null,null,null,null,null,0,null,null,null,null,null,null,null,null,null,null,null,null,null,null,null,null,null,0,null,null,null,null,null,null,null,null,null,null,null,null,0,null,null,null,null,null,null,null,null,null,null,null,null,null,null,null,null,0,null,null,null,null,null,null,null,null,null,null,null,null,null,null,null,null,null,0,null,null,null,null,null,null,null,null,null,null,null,null,null,null,0,null,null,null,null,null,0,50]
[39,"Van de Velde Herman",50,null,null,50,50,150,null,null,60,null,75,null,75,null,null,210,null,null,60,105,null,null,80,null,65,null,null,null,65,null,375,50,75,null,null,null,60,null,70,null,60,null,null,55,50,null,null,115,535,null,30,75,null,150,null,null,null,60,null,null,120,435,null,60,null,105,null,null,null,70,null,55,null,null,60,null,null,null,350,null,60,null,54,null,null,60,null,null,null,60,null,65,85,75,150,null,609,50,null,null,80,null,null,null,75,null,60,null,null,75,null,340,null,null,null,null,null,0,3004]
[40,"Van de Velde Ivan",50,null,null,50,50,150,40,50,40,40,40,50,50,65,null,375,null,40,60,null,null,60,60,null,70,null,null,80,40,null,410,50,75,null,null,75,50,null,70,60,40,null,null,null,null,null,52,85,557,null,30,75,null,null,40,null,null,null,null,null,null,145,40,null,null,null,null,null,70,45,85,null,null,null,40,null,null,50,330,null,null,null,null,null,null,null,null,null,null,null,null,null,null,null,null,null,0,null,null,null,null,null,null,null,null,null,null,null,null,null,null,0,null,null,null,null,null,0,1967]
[41,"Van de Velde Jarno",null,null,null,null,null,0,null,null,null,null,null,null,null,null,null,0,null,null,null,null,null,null,null,null,null,null,null,null,null,null,0,null,null,null,null,null,null,null,null,null,null,null,null,null,null,null,null,null,0,null,null,null,null,null,null,null,null,null,null,null,null,0,null,null,null,null,null,null,null,null,null,null,null,null,",",null,null,null,0,null,null,null,null,null,50,null,null,null,null,null,null,null,null,null,null,null,50,null,null,null,null,null,null,null,null,null,null,null,null,null,null,0,null,null,null,null,null,0,50]
[42,"Van De Velde Jens",null,null,null,null,null,0,null,null,null,null,null,null,null,null,null,0,null,null,null,null,null,null,null,null,null,null,null,null,null,null,0,null,null,null,null,null,null,null,null,null,null,null,null,null,null,null,null,null,0,null,null,null,null,null,null,null,null,null,null,null,null,0,null,null,null,null,null,null,null,null,null,null,null,null,null,null,null,null,0,null,null,null,null,null,null,null,null,null,null,null,null,null,null,null,null,null,0,null,null,null,null,null,null,null,null,null,null,null,null,null,null,{"$f":"SUM(CV43:DI43)","v":0},null,null,null,null,null,{"$f":"SUM(DK43:DO43)","v":0},0]
[43,"Van Der Gucht Bas",null,null,null,null,null,0,null,null,null,null,null,null,null,null,null,0,null,null,null,null,null,null,null,null,null,null,null,null,null,null,0,null,null,null,null,null,null,null,null,null,null,null,null,null,null,null,null,null,0,null,null,null,null,null,null,null,null,null,null,null,null,0,null,null,null,null,null,null,null,null,null,null,null,null,null,null,null,null,0,null,null,null,null,null,null,null,null,null,null,null,null,null,null,null,null,null,0,null,null,null,null,null,null,null,null,null,null,null,null,null,null,0,null,null,null,null,null,0,0]
[44,"Van Der Gucht Clo",50,40,40,50,50,230,40,50,60,null,null,75,50,150,60,485,null,120,60,60,null,null,null,30,40,50,null,null,65,null,425,null,null,null,null,null,null,null,null,null,null,null,110,80,90,null,52,null,332,null,30,50,null,150,40,null,null,60,null,null,120,450,180,60,null,null,null,null,null,null,null,null,null,null,null,null,null,null,240,75,75,null,null,null,75,60,null,null,70,60,null,null,null,null,150,85,650,50,null,80,45,null,null,null,75,null,null,null,null,75,50,375,null,null,null,null,null,0,3187]
[45,"Van Der Gucht Sam",null,null,null,null,null,0,null,null,null,null,null,null,null,null,null,0,null,null,null,null,null,null,null,null,null,null,null,null,null,null,0,null,null,null,null,null,null,null,null,null,null,null,null,null,null,null,null,null,0,null,null,null,null,null,null,null,null,null,null,null,null,0,null,null,null,null,null,null,null,null,null,null,null,null,null,null,null,null,0,null,null,null,null,null,null,null,null,null,null,null,null,null,null,null,null,null,0,null,null,null,null,null,null,null,null,null,null,null,null,null,null,0,null,null,null,null,null,0,0]
[46,"Van Elsuwege Robin",null,null,null,null,null,0,null,null,60,null,null,null,70,null,null,130,null,null,null,null,null,null,null,null,null,null,null,null,null,null,0,50,null,null,null,null,null,null,40,null,60,null,null,null,null,null,null,115,265,null,null,null,null,null,40,null,null,35,null,null,null,75,null,null,null,null,null,null,null,null,null,null,null,null,60,null,null,null,60,null,null,null,null,null,null,60,null,null,70,null,null,null,null,null,null,null,130,null,null,null,null,null,null,null,null,null,null,null,null,null,null,{"$f":"SUM(CV47:DI47)","v":0},null,null,null,null,null,{"$f":"SUM(DK47:DO47)","v":0},660]
[47,"Van Gansbeke Robin",null,null,null,null,null,0,null,null,60,null,null,null,70,null,null,130,null,null,null,null,null,null,null,null,null,null,null,null,null,null,0,null,null,null,null,null,null,null,null,null,60,null,null,null,null,null,null,115,175,null,null,null,null,null,null,null,null,null,null,null,null,0,null,80,null,null,null,null,null,null,null,null,null,null,60,null,null,null,140,50,null,null,54,null,null,60,null,null,70,null,null,null,null,null,null,null,234,null,null,null,null,null,null,null,null,null,null,null,null,null,null,{"$f":"SUM(CV48:DI48)","v":0},null,null,null,null,null,{"$f":"SUM(DK48:DO48)","v":0},679]
[48,"Van Lierde Ronny",null,null,null,null,null,0,null,null,null,null,null,null,null,null,null,0,null,null,null,null,null,60,null,null,87,null,null,null,null,null,147,50,110,null,null,null,null,null,null,null,null,null,null,null,null,null,null,null,160,null,30,null,null,40,null,null,null,null,null,null,null,70,null,null,null,60,null,null,null,null,null,null,null,null,null,null,null,null,60,50,null,null,54,null,80,null,null,null,null,null,null,null,null,null,null,null,184,null,null,80,null,null,null,null,null,null,null,null,null,null,50,130,null,null,null,null,null,0,751]
[49,"Van Waeyenberge Clebert",50,40,35,35,50,210,40,80,50,75,40,100,50,65,null,500,null,40,30,null,30,60,60,30,35,50,30,50,40,30,{"$f":"SUM(S50:AF50)","v":485},50,75,50,30,50,50,50,null,60,40,30,65,55,90,30,null,40,765,30,30,50,30,40,70,null,50,60,30,45,40,475,null,50,30,60,75,30,null,null,null,null,null,null,null,null,30,null,275,75,60,null,null,30,75,40,null,30,175,60,30,null,75,30,40,40,760,50,30,40,45,null,30,40,null,null,null,35,30,75,50,425,null,null,null,null,null,0,3895]
[null,null,{"$f":"COUNT(C2:C50)","v":18},{"$f":"COUNT(D2:D50)","v":17},13,12,17,{"$f":"COUNTIFS(H2:H50,\">0\")","v":25},{"$f":"COUNT(I2:I50)","v":12},15,21,12,10,16,14,11,5,{"$f":"COUNTIFS(R2:R50,\">0\")","v":30},{"$f":"COUNT(S2:S50)","v":2},10,13,17,4,13,18,6,19,13,5,8,23,5,{"$f":"COUNTIFS(AG2:AG50,\">0\")","v":29},{"$f":"COUNT(AH2:AH50)","v":21},18,10,6,14,12,1,19,15,17,7,11,17,15,5,12,19,{"$f":"COUNTIFS(AY2:AY50,\">0\")","v":33},{"$f":"COUNT(AZ2:AZ50)","v":6},{"$f":"COUNT(BA2:BA50)","v":22},15,6,13,18,0,9,14,4,9,11,{"$f":"COUNTIFS(BL2:BL50,\">0\")","v":30},{"$f":"COUNT(BM2:BM50)","v":10},13,4,14,14,4,10,20,10,8,6,6,16,null,4,9,{"$f":"COUNTIFS(CC2:CC50,\">0\")","v":30},{"$f":"COUNT(CD2:CD50)","v":19},17,1,12,4,16,17,0,5,12,12,4,6,15,15,14,14,{"$f":"COUNTIFS(CU2:CU50,\">0\")","v":30},{"$f":"COUNT(CV2:CV50)","v":15},{"$f":"COUNT(CW2:CW50)","v":4},9,12,10,4,2,9,1,7,12,5,14,14,{"$f":"COUNTIFS(DJ2:DJ50,\">0\")","v":22},{"$f":"COUNT(DK2:DK50)","v":0},0,0,0,0,{"$f":"COUNTIFS(DP2:DP50,\">0\")","v":0},{"$f":"COUNTIFS(DQ2:DQ50,\">0\")","v":39}]

{"sheet":"Dames - Ptn","index":2,"n_rows":22,"n_cols":110,"rows_kept":22,"cut":false,"hidden":false,"merged":[]}
[null,"2015 DAMES - Punten","2015-02-14","2015-02-15","2015-02-21","2015-02-22","2015-02-28","Februari","2015-03-01","2015-03-07","2015-03-08","2015-03-14","2015-03-15","2015-03-21","2015-03-22","2015-03-28","2015-03-29","Maart","2015-04-02","2015-04-04","2015-04-05","2015-04-06","2015-04-09","2015-04-11","2015-04-12","2015-04-18","2015-04-19","2015-04-25","2015-04-26","April","2015-05-01","2015-05-02","2015-05-03","2015-05-07","2015-05-09","2015-05-10","2015-05-14","2015-05-16","2015-05-17","2015-05-21","2015-05-23","2015-05-24","2015-05-25","2015-05-28","2015-05-30","2015-05-31","Mei","2015-06-04","2015-06-06","2015-06-07","2015-06-11","2015-06-13","2015-06-14","ETENTJE 14/06","2015-06-18","2015-06-20","2015-06-21","2015-06-25","2015-06-27","2015-06-28","Juni","2015-07-04","2015-07-05","2015-07-09","2015-07-11","2015-07-12","2015-07-16","2015-07-18","2015-07-19","2015-07-21","2015-07-23","2015-07-23","2015-07-25","2015-07-26","2015-07-30","2015-07-30","Juli","2015-08-01","2015-08-02","2015-08-06","2015-08-06","2015-08-08","2015-08-09","2015-08-13","2015-08-13","2015-08-15","2015-08-16","2015-08-20","2015-08-21","2015-08-22","2015-08-23","2015-08-29","2015-08-30","Augustus","2015-09-02","2015-09-05","2015-09-06","2015-09-09","2015-09-12","2015-09-13","2015-09-18","2015-09-19","2015-09-20","2015-09-24","2015-09-26","2015-09-27","September",null,"Permanenten","EINDSTAND"]
[1,"Baele Greet",2,2,2,2,2,{"$f":"SUM(C2:G2)","v":10},null,null,2,null,2,null,2,null,2,{"$f":"SUM(I2:Q2)","v":8},null,null,2,2,null,2,2,2,2,null,3,{"$f":"SUM(S2:AC2)","v":15},2,2,null,null,null,2,2,2,2,null,2,null,4,null,null,2,{"$f":"SUM(AE2:AT2)","v":20},null,5,2,null,2,null,2,null,null,2,null,null,null,{"$f":"SUM(AV2:BH2)","v":13},2,2,null,2,2,null,2,2,2,2,null,null,2,null,null,{"$f":"SUM(BJ2:BX2)","v":18},2,2,2,null,2,2,2,null,null,2,null,2,2,2,2,null,{"$f":"SUM(BZ2:CO2)","v":22},3,null,2,null,null,2,null,2,null,null,null,2,{"$f":"SUM(CQ2:DB2)","v":11},null,{"$f":"SUM(DD2:DD2)","v":0},{"$f":"H2+R2+AD2+AU2+BI2+BY2+CP2+DC2+DE2","v":117}]
[{"$f":"A2+1","v":2},"Borremans Martine",null,null,null,null,null,{"$f":"SUM(C3:G3)","v":0},null,null,null,null,null,null,null,null,null,0,null,null,null,null,null,null,null,null,null,null,null,{"$f":"SUM(S3:AC3)","v":0},null,null,null,null,null,null,null,null,null,null,null,null,null,null,null,null,0,null,null,null,null,null,null,null,null,null,null,null,null,null,{"$f":"SUM(AV3:BH3)","v":0},null,null,null,null,null,null,null,2,null,null,null,null,null,null,null,2,null,null,null,null,null,null,null,null,null,null,null,null,null,null,null,null,{"$f":"SUM(BZ3:CO3)","v":0},null,null,null,null,null,null,null,null,null,null,null,null,0,null,{"$f":"SUM(DD3:DD3)","v":0},2]
[{"$f":"A3+1","v":3},"Cordier Arlette",null,null,null,null,2,{"$f":"SUM(C4:G4)","v":2},null,2,2,null,null,2,null,null,null,6,null,null,null,null,null,2,2,2,2,2,3,13,2,null,2,null,null,2,2,2,2,null,2,2,4,null,2,2,24,null,null,2,null,2,2,2,null,null,2,null,2,2,{"$f":"SUM(AV4:BH4)","v":14},2,2,null,null,2,null,2,2,2,2,null,null,null,null,2,16,2,2,2,null,2,2,null,null,2,2,null,2,2,2,2,2,24,3,2,2,2,null,null,null,null,null,null,null,2,11,null,0,110]
[4,"De Clercq Elsie",null,null,null,null,null,0,null,null,null,null,null,null,null,null,null,0,null,null,null,null,null,null,null,null,null,null,null,0,null,null,null,null,null,null,null,null,null,null,null,null,null,null,null,null,0,null,null,null,null,null,null,null,null,null,null,null,null,null,0,null,null,null,null,null,null,null,null,null,null,null,null,null,null,null,0,null,null,null,null,null,null,null,null,null,null,null,null,null,null,null,null,{"$f":"SUM(BZ5:CO5)","v":0},null,null,null,null,null,null,null,null,null,null,null,null,0,null,{"$f":"SUM(DD5:DD5)","v":0},0]
[5,"De Clercq Marijke",null,null,null,null,null,0,null,null,null,null,null,null,null,null,null,0,null,null,null,null,null,null,null,null,null,null,null,0,null,null,null,null,null,null,null,null,2,null,null,null,null,null,null,null,2,null,null,null,null,null,null,null,null,null,null,null,null,null,0,null,null,null,null,null,null,null,null,null,null,null,null,null,null,null,0,null,null,null,null,null,null,null,null,null,null,null,null,null,null,null,null,0,null,null,null,null,null,null,null,null,null,null,null,null,0,null,0,2]
[6,"De Maeseneire Caroline",null,null,null,null,null,0,null,null,null,null,null,null,null,null,null,0,null,null,null,null,null,null,null,null,null,null,null,0,null,null,null,null,null,null,null,null,null,null,null,null,2,null,null,null,2,null,null,null,null,null,2,2,null,null,null,null,null,null,4,null,null,null,null,null,null,null,null,null,null,null,null,null,null,null,0,null,null,null,null,null,null,null,null,null,null,null,null,2,2,null,null,4,null,null,null,null,null,null,null,null,null,null,null,null,0,null,0,10]
[7,"D'Hondt Kristien",null,null,null,null,null,0,null,null,null,null,null,null,null,null,null,0,null,null,null,null,null,null,null,null,null,null,null,0,null,null,null,null,null,null,null,null,null,null,null,null,2,null,null,null,2,null,null,null,null,null,null,2,null,null,null,null,null,null,2,null,null,null,null,null,null,null,null,null,null,null,null,null,null,null,0,null,null,null,null,null,null,null,null,null,null,null,null,null,null,null,2,2,null,null,null,null,null,null,null,null,null,null,null,null,0,null,0,6]
[8,"Heyndrickx Marinka",null,null,null,null,null,0,null,null,null,null,null,null,null,null,null,0,null,null,null,null,null,null,null,null,null,null,null,0,null,null,null,null,null,null,null,null,null,null,null,null,null,null,null,null,0,null,null,null,null,null,null,2,null,null,null,null,null,null,2,null,null,null,null,null,null,null,null,null,null,null,null,null,null,null,0,null,null,null,null,null,null,null,null,null,null,null,null,null,null,null,null,{"$f":"SUM(BZ9:CO9)","v":0},null,null,null,null,null,null,null,null,null,null,null,null,0,null,{"$f":"SUM(DD9:DD9)","v":0},2]
[9,"Huybens Annelies",null,null,null,null,null,0,null,null,null,null,null,null,null,null,null,0,null,null,null,null,null,null,null,null,null,null,null,0,null,null,null,null,null,null,null,null,null,null,null,null,null,null,null,null,0,null,null,null,null,null,null,null,null,null,null,null,null,null,0,null,null,null,null,null,null,null,null,null,null,null,null,null,null,null,0,null,null,null,null,null,null,null,null,null,null,null,null,null,null,null,null,0,null,null,null,null,null,null,null,null,null,null,null,null,0,null,0,0]
[10,"Koops Katleen",2,null,2,null,2,6,null,2,null,2,null,2,2,2,null,10,null,null,null,2,null,2,null,2,null,2,null,8,2,2,null,null,2,null,2,2,null,null,null,null,null,null,2,null,12,null,5,null,null,2,null,null,null,2,null,null,2,null,11,2,null,null,2,null,null,null,null,2,null,null,2,null,null,null,8,2,null,null,null,null,null,null,null,2,null,null,null,2,null,2,null,{"$f":"SUM(BZ11:CO11)","v":8},null,2,null,null,null,null,null,2,null,null,null,null,4,null,{"$f":"SUM(DD11:DD11)","v":0},67]
[11,"Liedts Marie-Jeanne",null,2,null,2,null,4,null,null,2,null,2,2,2,null,null,8,null,null,null,2,null,null,2,null,null,null,3,7,null,2,null,null,null,null,2,2,2,null,null,2,2,null,2,2,16,null,5,2,null,2,null,null,null,2,null,null,null,2,13,2,2,null,null,2,null,null,null,null,2,null,null,2,null,null,10,2,2,2,null,2,2,2,null,null,2,null,2,2,2,2,2,24,null,2,null,null,null,2,2,2,null,null,2,2,12,null,0,94]
[12,"Meulenijzer Kelly",null,null,null,null,null,0,null,null,null,null,null,null,null,null,null,0,null,null,null,null,null,null,null,null,null,null,null,0,null,null,null,null,null,null,null,null,null,null,null,null,2,null,null,null,2,null,5,null,null,null,null,null,null,null,null,null,null,null,5,null,null,null,null,null,null,null,2,null,null,null,null,null,null,null,2,null,null,null,null,2,null,null,null,null,2,null,null,null,null,null,2,6,null,null,null,null,null,2,null,null,null,null,null,null,2,null,0,17]
[13,"Meulenijzer Martine",null,null,null,null,null,0,null,null,null,null,null,null,null,2,null,2,null,null,null,null,null,null,null,2,null,null,3,5,2,2,null,null,null,null,2,2,2,null,2,2,2,null,2,2,20,null,5,2,null,2,2,2,null,2,null,null,null,2,17,null,null,null,2,null,null,2,2,2,2,null,null,null,null,2,12,2,2,2,null,2,null,null,null,null,null,null,2,2,2,2,null,16,null,null,null,2,null,null,null,null,null,null,null,null,2,null,0,74]
[14,"Schilders Monique",null,null,null,null,null,0,null,null,null,null,null,null,null,null,null,0,1,null,null,null,1,null,2,null,null,null,null,4,null,null,null,1,null,null,2,null,null,null,null,null,null,1,null,null,4,null,null,2,1,null,null,null,null,null,null,1,null,null,4,null,null,1,null,null,1,null,null,null,null,2,null,null,null,null,4,null,null,null,2,null,null,null,null,null,null,null,null,null,null,null,null,2,null,null,null,null,null,null,null,null,null,1,null,null,1,null,0,19]
[15,"Slagmeulder Nadine",null,null,null,null,2,2,null,2,2,null,null,2,2,null,null,8,null,null,2,2,null,2,2,2,2,2,3,17,2,2,2,null,null,2,2,2,2,null,2,2,4,null,2,2,26,null,5,2,null,2,2,2,null,2,2,null,2,2,21,2,null,null,2,2,null,2,null,2,2,null,null,null,null,null,12,2,2,2,null,2,2,null,null,2,2,null,2,2,2,2,2,24,3,null,2,2,null,null,null,null,null,null,2,2,11,null,0,121]
[16,"Van Damme Els",null,null,null,null,null,0,null,null,null,null,null,null,null,null,null,0,null,null,null,null,null,null,null,null,null,null,null,0,null,null,null,null,null,null,null,null,null,null,null,null,null,null,null,null,0,null,null,null,null,null,null,null,null,null,null,null,null,null,0,null,null,null,null,null,null,null,null,null,null,null,null,null,null,null,0,null,null,null,null,null,null,null,null,null,null,null,null,null,null,null,null,0,null,null,null,null,null,null,null,null,null,null,null,null,0,null,0,0]
[17,"Van Damme Nancy",null,null,null,null,null,0,null,null,null,null,null,null,null,null,null,0,null,null,null,null,null,null,null,null,null,null,null,0,null,null,null,null,null,null,null,null,null,null,null,null,null,null,null,null,0,null,null,null,null,null,null,null,null,null,null,null,null,null,0,null,null,null,null,null,null,null,null,null,null,null,null,null,null,null,0,null,null,null,null,null,null,null,null,null,null,null,null,null,null,null,null,0,null,null,null,null,null,null,null,null,null,null,null,null,0,null,0,0]
[18,"Van Der Gucht Sara",null,null,null,null,null,0,null,null,null,null,null,null,null,null,null,0,null,null,null,null,null,null,null,null,null,null,null,0,null,null,null,null,null,null,null,null,null,null,null,null,null,null,null,null,0,null,null,null,null,null,null,null,null,null,null,null,null,null,0,null,null,null,null,null,null,null,null,null,null,null,null,null,null,null,0,null,null,null,null,null,null,null,null,null,null,null,null,null,null,null,null,0,null,null,null,null,null,null,null,null,null,null,null,null,0,null,0,0]
[19,"Van Dijcke Anja",null,null,null,null,null,0,null,null,null,null,null,null,null,null,null,0,null,null,null,null,null,null,null,null,null,null,null,0,null,null,null,null,null,null,null,null,null,null,null,null,null,null,null,null,0,null,null,null,null,null,null,null,null,null,null,null,null,null,0,null,null,null,null,null,null,null,null,null,null,null,null,null,null,null,0,null,null,null,null,null,null,null,null,null,null,null,null,null,null,null,null,{"$f":"SUM(BZ20:CO20)","v":0},null,null,null,null,null,null,null,null,null,null,null,null,0,null,{"$f":"SUM(DD20:DD20)","v":0},0]
[20,"Van Herzeele Georgette",null,null,null,null,null,0,null,null,null,null,null,null,null,null,null,0,null,null,null,null,null,null,null,null,null,null,null,0,null,null,null,null,null,null,null,null,null,null,null,null,null,null,null,null,0,null,null,null,null,null,null,null,null,null,null,null,null,null,0,null,null,null,null,null,null,null,null,null,null,null,null,null,null,null,0,null,null,null,null,null,null,null,null,null,null,null,null,null,null,null,null,0,null,null,null,null,null,null,null,null,null,null,null,null,0,null,0,0]
[null,null,{"$f":"COUNT(C2:C21)","v":2},{"$f":"COUNT(D2:D21)","v":2},{"$f":"COUNT(E2:E21)","v":2},{"$f":"COUNT(F2:F21)","v":2},{"$f":"COUNT(G2:G21)","v":4},{"$f":"COUNTIFS(H2:H21,\">0\")","v":5},{"$f":"COUNT(I2:I21)","v":0},3,4,1,2,4,4,2,1,{"$f":"COUNTIFS(R2:R21,\">0\")","v":6},{"$f":"COUNT(S2:S21)","v":1},0,2,4,1,4,5,5,3,3,5,{"$f":"COUNTIFS(AD2:AD21,\">0\")","v":7},{"$f":"COUNT(AE2:AE21)","v":5},5,2,1,1,3,7,6,6,0,4,4,8,1,5,5,{"$f":"COUNTIFS(AU2:AU21,\">0\")","v":11},{"$f":"COUNT(AV2:AV21)","v":0},6,6,1,6,4,7,0,4,3,1,3,4,{"$f":"COUNTIFS(BI2:BI21,\">0\")","v":11},{"$f":"COUNT(BJ2:BJ21)","v":5},3,1,4,4,1,4,5,5,5,1,1,2,0,2,{"$f":"COUNTIFS(BY2:BY21,\">0\")","v":9},{"$f":"COUNT(BZ2:BZ21)","v":6},5,5,1,6,4,2,0,3,5,0,5,7,6,6,5,{"$f":"COUNTIFS(CP2:CP21,\">0\")","v":10},{"$f":"COUNT(CQ2:CQ21)","v":3},3,3,3,0,3,1,3,0,1,2,4,{"$f":"COUNTIFS(DC2:DC21,\">0\")","v":8},{"$f":"COUNT(DD2:DD21)","v":0},{"$f":"COUNTIFS(DE2:DE21,\">0\")","v":0},{"$f":"COUNTIFS(DF2:DF21,\">0\")","v":13}]

{"sheet":"Dames - Kms","index":3,"n_rows":22,"n_cols":109,"rows_kept":22,"cut":false,"hidden":false,"merged":[]}
[null,"2015 DAMES - Kms","2015-02-14","2015-02-15","2015-02-21","2015-02-22","2015-02-28","Februari","2015-03-01","2015-03-07","2015-03-08","2015-03-14","2015-03-15","2015-03-21","2015-03-22","2015-03-28","2015-03-29","Maart","2015-04-02","2015-04-04","2015-04-05","2015-04-06","2015-04-09","2015-04-11","2015-04-12","2015-04-18","2015-04-19","2015-04-25","2015-04-26","April","2015-05-01","2015-05-02","2015-05-03","2015-05-07","2015-05-09","2015-05-10","2015-05-14","2015-05-16","2015-05-17","2015-05-21","2015-05-23","2015-05-24","2015-05-25","2015-05-28","2015-05-30","2015-05-31","Mei","2015-06-04","2015-06-06","2015-06-07","2015-06-11","2015-06-13","2015-06-14","2015-06-18","2015-06-20","2015-06-21","2015-06-25","2015-06-27","2015-06-28","Juni","2015-07-04","2015-07-05","2015-07-09","2015-07-11","2015-07-12","2015-07-16","2015-07-18","2015-07-19","2015-07-21","2015-07-23","2015-07-23","2015-07-25","2015-07-26","2015-07-30","2015-07-30","Juli","2015-08-01","2015-08-02","2015-08-06","2015-08-06","2015-08-08","2015-08-09","2015-08-13","2015-08-13","2015-08-15","2015-08-16","2015-08-20","2015-08-21","2015-08-22","2015-08-23","2015-08-29","2015-08-30","Augustus","2015-09-02","2015-09-05","2015-09-06","2015-09-09","2015-09-12","2015-09-13","2015-09-18","2015-09-19","2015-09-20","2015-09-24","2015-09-26","2015-09-27","September",null,"Permanenten","EINDSTAND"]
[1,"Baele Greet",50,40,40,50,50,{"$f":"SUM(C2:G2)","v":230},null,null,60,null,75,null,75,null,40,{"$f":"SUM(I2:Q2)","v":250},null,null,60,105,null,60,80,65,50,null,65,{"$f":"SUM(S2:AC2)","v":485},50,75,null,null,null,60,70,85,60,null,110,null,90,null,null,115,{"$f":"SUM(AE2:AT2)","v":715},null,30,75,null,150,null,null,null,60,null,null,null,{"$f":"SUM(AV2:BG2)","v":315},40,60,null,105,75,null,70,70,110,55,null,null,60,null,null,{"$f":"SUM(BI2:BW2)","v":645},75,60,54,null,50,60,160,null,null,60,null,65,85,75,150,null,{"$f":"SUM(BY2:CN2)","v":894},50,null,80,null,null,75,null,60,null,null,null,50,{"$f":"SUM(CP2:DA2)","v":315},null,{"$f":"SUM(DC2:DC2)","v":0},{"$f":"H2+R2+AD2+AU2+BH2+BX2+CO2+DB2+DD2","v":3849}]
[{"$f":"A2+1","v":2},"Borremans Martine",null,null,null,null,null,{"$f":"SUM(C3:G3)","v":0},null,null,null,null,null,null,null,null,null,0,null,null,null,null,null,null,null,null,null,null,null,{"$f":"SUM(S3:AC3)","v":0},null,null,null,null,null,null,null,null,null,null,null,null,null,null,null,null,0,null,null,null,null,null,null,null,null,null,null,null,null,{"$f":"SUM(AV3:BG3)","v":0},null,null,null,null,null,null,null,45,null,null,null,null,null,null,null,45,null,null,null,null,null,null,null,null,null,null,null,null,null,null,null,null,{"$f":"SUM(BY3:CN3)","v":0},null,null,null,null,null,null,null,null,null,null,null,null,0,null,{"$f":"SUM(DC3:DC3)","v":0},45]
[{"$f":"A3+1","v":3},"Cordier Arlette",null,null,null,null,50,{"$f":"SUM(C4:G4)","v":50},null,50,40,null,null,50,null,null,null,140,null,null,null,null,null,40,35,40,50,50,65,280,50,null,25,null,null,40,40,60,40,null,65,40,90,null,25,40,515,null,null,25,null,40,40,null,null,35,null,45,40,225,40,40,null,null,45,null,40,45,60,55,null,null,null,null,50,375,50,40,32,null,50,40,null,null,70,40,null,65,85,75,40,40,627,50,40,45,50,null,null,null,null,null,null,null,50,235,null,0,2447]
[4,"De Clercq Elsie",null,null,null,null,null,0,null,null,null,null,null,null,null,null,null,0,null,null,null,null,null,null,null,null,null,null,null,0,null,null,null,null,null,null,null,null,null,null,null,null,null,null,null,null,0,null,null,null,null,null,null,null,null,null,null,null,null,{"$f":"SUM(AV5:BG5)","v":0},null,null,null,null,null,null,null,null,null,null,null,null,null,null,null,0,null,null,null,null,null,null,null,null,null,null,null,null,null,null,null,null,{"$f":"SUM(BY5:CN5)","v":0},null,null,null,null,null,null,null,null,null,null,null,null,0,null,{"$f":"SUM(DC5:DC5)","v":0},0]
[5,"De Clercq Marijke",null,null,null,null,null,0,null,null,null,null,null,null,null,null,null,0,null,null,null,null,null,null,null,null,null,null,null,0,null,null,null,null,null,null,null,null,40,null,null,null,null,null,null,null,40,null,null,null,null,null,null,null,null,null,null,null,null,0,null,null,null,null,null,null,null,null,null,null,null,null,null,null,null,0,null,null,null,null,null,null,null,null,null,null,null,null,null,null,null,null,0,null,null,null,null,null,null,null,null,null,null,null,null,0,null,0,40]
[6,"De Maeseneire Caroline",null,null,null,null,null,0,null,null,null,null,null,null,null,null,null,0,null,null,null,null,null,null,null,null,null,null,null,0,null,null,null,null,null,null,null,null,null,null,null,null,40,null,null,null,40,null,null,null,null,null,40,null,null,null,null,null,null,40,null,null,null,null,null,null,null,null,null,null,null,null,null,null,null,0,null,null,null,null,null,null,null,null,null,null,null,null,85,75,null,25,185,null,null,null,null,null,null,null,null,null,null,null,null,0,null,0,265]
[7,"D'Hondt Kristien",null,null,null,null,null,0,null,null,null,null,null,null,null,null,null,0,null,null,null,null,null,null,null,null,null,null,null,0,null,null,null,null,null,null,null,null,null,null,null,null,40,null,null,null,40,null,null,null,null,null,null,null,null,null,null,null,null,0,null,null,null,null,null,null,null,null,null,null,null,null,null,null,null,0,null,null,null,null,null,null,null,null,null,null,null,null,null,null,null,25,25,null,null,null,null,null,null,null,null,null,null,null,null,0,null,0,65]
[8,"Heyndrickx Marinka",null,null,null,null,null,0,null,null,null,null,null,null,null,null,null,0,null,null,null,null,null,null,null,null,null,null,null,0,null,null,null,null,null,null,null,null,null,null,null,null,null,null,null,null,0,null,null,null,null,null,null,null,null,null,null,null,null,{"$f":"SUM(AV9:BG9)","v":0},null,null,null,null,null,null,null,null,null,null,null,null,null,null,null,0,null,null,null,null,null,null,null,null,null,null,null,null,null,null,null,null,{"$f":"SUM(BY9:CN9)","v":0},null,null,null,null,null,null,null,null,null,null,null,null,0,null,{"$f":"SUM(DC9:DC9)","v":0},0]
[9,"Huybens Annelies",null,null,null,null,null,0,null,null,null,null,null,null,null,null,null,0,null,null,null,null,null,null,null,null,null,null,null,0,null,null,null,null,null,null,null,null,null,null,null,null,null,null,null,null,0,null,null,null,null,null,null,null,null,null,null,null,null,0,null,null,null,null,null,null,null,null,null,null,null,null,null,null,null,0,null,null,null,null,null,null,null,null,null,null,null,null,null,null,null,null,0,null,null,null,null,null,null,null,null,null,null,null,null,0,null,0,0]
[10,"Koops Katleen",50,null,40,null,50,140,null,50,null,75,null,50,115,150,null,440,null,null,null,60,null,100,null,115,145,null,null,420,50,75,null,null,105,null,105,105,null,null,null,null,null,null,52,null,492,null,30,null,null,150,null,null,90,null,null,90,null,{"$f":"SUM(AV11:BG11)","v":360},180,null,null,60,null,null,null,null,110,null,null,60,null,null,null,410,105,null,null,null,null,null,null,null,70,null,null,null,100,null,150,null,{"$f":"SUM(BY11:CN11)","v":425},null,105,null,null,null,null,null,60,null,null,null,null,165,null,{"$f":"SUM(DC11:DC11)","v":0},2852]
[11,"Liedts Marie-Jeanne",null,40,null,35,null,75,null,null,40,null,40,25,25,null,null,130,null,null,null,40,null,null,35,null,null,null,40,115,null,50,null,null,null,null,40,60,40,null,null,40,40,null,52,40,362,null,30,50,null,40,null,null,60,null,null,null,40,220,40,40,null,null,45,null,null,null,null,55,null,null,40,null,null,220,50,40,54,null,50,40,160,null,null,60,null,65,85,75,40,40,759,null,40,null,null,null,75,35,80,null,null,40,50,320,null,0,2201]
[12,"Meulenijzer Kelly",null,null,null,null,null,0,null,null,null,null,null,null,null,null,null,0,null,null,null,null,null,null,null,null,null,null,null,0,null,null,null,null,null,null,null,null,null,null,null,null,50,null,null,null,50,null,30,null,null,null,null,null,null,null,null,null,null,30,null,null,null,null,null,null,null,45,null,null,null,null,null,null,null,45,null,null,null,null,40,null,null,null,null,40,null,null,null,null,null,35,115,null,null,null,null,null,40,null,null,null,null,null,null,40,null,0,280]
[13,"Meulenijzer Martine",null,null,null,null,null,0,null,null,null,null,null,null,null,40,null,40,null,null,null,null,null,null,null,40,null,null,40,80,30,50,null,null,null,null,40,40,40,null,65,40,25,null,25,40,395,null,30,50,null,40,40,null,60,null,null,null,40,260,null,null,null,60,null,null,40,45,60,37,null,null,null,null,50,292,50,40,32,null,null,null,null,null,null,null,null,65,85,75,40,null,387,null,null,null,50,null,null,null,null,null,null,null,null,50,null,0,1504]
[14,"Schilders Monique",null,null,null,null,null,0,null,null,null,null,null,null,null,null,null,0,30,null,null,null,30,null,35,null,null,null,null,95,null,null,null,30,null,null,40,null,null,null,null,null,null,30,null,null,100,null,null,25,30,null,null,null,null,null,30,null,null,85,null,null,30,null," ",30,null,null,null,null,40,null,null,null,null,100,null,null,null,30,null,null,null,null,null,null,null,null,null,null,null,null,30,null,null,null,null,null,null,null,null,null,30,null,null,30,null,0,440]
[15,"Slagmeulder Nadine",null,null,null,null,50,50,null,50,40,null,null,50,25,null,null,165,null,null,30,45,null,40,35,40,50,50,40,330,50,50,25,null,null,40,40,60,40,null,65,40,90,null,25,40,565,null,30,50,null,40,40,null,35,35,null,45,40,315,40,null,null,60,45,null,40,null,60,55,null,null,null,null,null,300,50,40,32,null,50,40,null,null,70,40,null,65,85,75,40,40,627,30,null,45,50,null,null,null,null,null,null,40,50,215,null,0,2567]
[16,"Van Damme Els",null,null,null,null,null,0,null,null,null,null,null,null,null,null,null,0,null,null,null,null,null,null,null,null,null,null,null,0,null,null,null,null,null,null,null,null,null,null,null,null,null,null,null,null,0,null,null,null,null,null,null,null,null,null,null,null,null,0,null,null,null,null,null,null,null,null,null,null,null,null,null,null,null,0,null,null,null,null,null,null,null,null,null,null,null,null,null,null,null,null,0,null,null,null,null,null,null,null,null,null,null,null,null,0,null,0,0]
[17,"Van Damme Nancy",null,null,null,null,null,0,null,null,null,null,null,null,null,null,null,0,null,null,null,null,null,null,null,null,null,null,null,0,null,null,null,null,null,null,null,null,null,null,null,null,null,null,null,null,0,null,null,null,null,null,null,null,null,null,null,null,null,0,null,null,null,null,null,null,null,null,null,null,null,null,null,null,null,0,null,null,null,null,null,null,null,null,null,null,null,null,null,null,null,null,0,null,null,null,null,null,null,null,null,null,null,null,null,0,null,0,0]
[18,"Van Der Gucht Sara",null,null,null,null,null,0,null,null,null,null,null,null,null,null,null,0,null,null,null,null,null,null,null,null,null,null,null,0,null,null,null,null,null,null,null,null,null,null,null,null,null,null,null,null,0,null,null,null,null,null,null,null,null,null,null,null,null,0,null,null,null,null,null,null,null,null,null,null,null,null,null,null,null,0,null,null,null,null,null,null,null,null,null,null,null,null,null,null,null,null,0,null,null,null,null,null,null,null,null,null,null,null,null,0,null,0,0]
[19,"Van Dijcke Anja",null,null,null,null,null,0,null,null,null,null,null,null,null,null,null,0,null,null,null,null,null,null,null,null,null,null,null,0,null,null,null,null,null,null,null,null,null,null,null,null,null,null,null,null,0,null,null,null,null,null,null,null,null,null,null,null,null,{"$f":"SUM(AV20:BG20)","v":0},null,null,null,null,null,null,null,null,null,null,null,null,null,null,null,0,null,null,null,null,null,null,null,null,null,null,null,null,null,null,null,null,{"$f":"SUM(BY20:CN20)","v":0},null,null,null,null,null,null,null,null,null,null,null,null,0,null,{"$f":"SUM(DC20:DC20)","v":0},0]
[20,"Van Herzeele Georgette",null,null,null,null,null,0,null,null,null,null,null,null,null,null,null,0,null,null,null,null,null,null,null,null,null,null,null,0,null,null,null,null,null,null,null,null,null,null,null,null,null,null,null,null,0,null,null,null,null,null,null,null,null,null,null,null,null,0,null,null,null,null,null,null,null,null,null,null,null,null,null,null,null,0,null,null,null,null,null,null,null,null,null,null,null,null,null,null,null,null,0,null,null,null,null,null,null,null,null,null,null,null,null,0,null,0,0]
[null,null,{"$f":"COUNT(C2:C21)","v":2},2,2,2,4,{"$f":"COUNTIFS(H2:H21,\">0\")","v":5},{"$f":"COUNT(I2:I21)","v":0},3,4,1,2,4,4,2,1,{"$f":"COUNTIFS(R2:R21,\">0\")","v":6},{"$f":"COUNT(S2:S21)","v":1},0,2,4,1,4,5,5,4,2,5,{"$f":"COUNTIFS(AD2:AD21,\">0\")","v":7},{"$f":"COUNT(AE2:AE21)","v":5},5,2,1,1,3,7,6,6,0,4,4,8,1,5,5,{"$f":"COUNTIFS(AU2:AU21,\">0\")","v":11},{"$f":"COUNT(AV2:AV21)","v":0},6,6,1,6,4,0,4,3,1,3,4,{"$f":"COUNTIFS(BH2:BH21,\">0\")","v":9},{"$f":"COUNT(BI2:BI21)","v":5},3,1,4,4,1,4,5,5,5,1,1,2,0,2,{"$f":"COUNTIFS(BX2:BX21,\">0\")","v":9},{"$f":"COUNT(BY2:BY21)","v":6},5,5,1,5,4,2,0,3,5,0,5,7,6,6,6,{"$f":"COUNTIFS(CO2:CO21,\">0\")","v":10},{"$f":"COUNT(CP2:CP21)","v":3},3,3,3,0,3,1,3,0,1,2,4,{"$f":"COUNTIFS(DB2:DB21,\">0\")","v":8},{"$f":"COUNT(DC2:DC21)","v":0},{"$f":"COUNTIFS(DD2:DD21,\">0\")","v":0},{"$f":"COUNTIFS(DE2:DE21,\">0\")","v":12}]

{"sheet":"Jeugd -18j - Ptn","index":4,"n_rows":10,"n_cols":110,"rows_kept":10,"cut":false,"hidden":false,"merged":[]}
[null,"2015 JEUGD -18j - Punten",null,"2015-02-14","2015-02-15","2015-02-21","2015-02-22","2015-02-28","Februari","2015-03-01","2015-03-07","2015-03-08","2015-03-14","2015-03-15","2015-03-21","2015-03-22","2015-03-28","2015-03-29","Maart","2015-03-01","2015-03-07","2015-03-08","2015-03-14","2015-03-15","2015-03-21","2015-03-22","2015-03-28","2015-03-29","April","2015-05-01","2015-05-02","2015-05-03","2015-05-07","2015-05-09","2015-05-10","2015-05-14","2015-05-14","2015-05-16","2015-05-17","2015-05-21","2015-05-23","2015-05-24","2015-05-25","2015-05-28","2015-05-30","2015-05-31","Mei","2015-06-04","2015-06-06","2015-06-07","2015-06-11","2015-06-13","2015-06-14","ETENTJE 14/06","2015-06-18","2015-06-20","2015-06-21","2015-06-25","2015-06-27","2015-06-28","Juni","2015-07-04","2015-07-05","2015-07-09","2015-07-11","2015-07-12","2015-07-16","2015-07-18","2015-07-19","2015-07-21","2015-07-23","2015-07-23","2015-07-25","2015-07-26","2015-07-30","2015-07-30","Juli","2015-08-01","2015-08-02","2015-08-06","2015-08-06","2015-08-08","2015-08-09","2015-08-13","2015-08-13","2015-08-15","2015-08-16","2015-08-20","2015-08-22","2015-08-23","2015-08-27","2015-08-29","2015-08-30","Augustus","2014-09-03","2014-09-04","2014-09-06","2014-09-07","2014-09-10","2014-09-13","2014-09-14","2014-09-19","2014-09-20","2014-09-21","2014-09-27","2014-09-28","September",null,"Permanenten","EINDSTAND"]
[1,"Anseau Jarne",null,null,null,null,null,null,{"$f":"SUM(D2:G2)","v":0},null,null,null,null,null,null,null,null,null,{"$f":"SUM(J2:R2)","v":0},null,null,null,null,null,null,null,null,null,{"$f":"SUM(T2:AB2)","v":0},null,null,null,null,null,null,null,null,null,null,null,null,null,null,null,null,null,{"$f":"SUM(AD2:AT2)","v":0},null,null,null,null,null,null,null,null,null,null,null,null,null,{"$f":"SUM(AV2:BH2)","v":0},null,null,null,null,null,null,null,null,null,null,null,null,null,null,null,{"$f":"SUM(BL2:BX2)","v":0},null,null,null,null,null,null,null,null,null,null,null,null,null,null,null,null,{"$f":"SUM(BZ2:CO2)","v":0},null,null,null,null,null,null,null,null,null,null,null,null,{"$f":"SUM(CQ2:DB2)","v":0},null,{"$f":"SUM(DD2:DD2)","v":0},{"$f":"I2+S2+AC2+AU2+BI2+BY2+CP2+DC2+DE2","v":0}]
[{"$f":"A2+1","v":2},"Anseau Joran",null,null,null,null,null,null,0,null,null,null,null,null,null,null,null,null,0,null,null,null,null,null,null,null,null,null,0,null,null,null,null,null,null,null,null,null,null,null,null,null,null,null,null,null,0,null,null,null,null,null,null,null,null,null,null,null,null,null,0,null,null,null,null,null,null,null,null,null,null,null,null,null,null,null,0,null,null,null,null,null,null,null,null,null,null,null,null,null,null,null,null,0,null,null,null,null,null,null,null,null,null,null,null,null,0,null,0,0]
[{"$f":"A3+1","v":3},"Baeyens Clara",null,null,null,null,null,null,{"$f":"SUM(D4:G4)","v":0},null,null,null,null,null,null,null,null,null,0,null,null,null,null,null,null,null,null,null,{"$f":"SUM(T4:AB4)","v":0},null,null,null,null,null,null,null,null,null,null,null,null,null,null,null,null,null,{"$f":"SUM(AD4:AT4)","v":0},null,null,null,null,null,null,null,null,null,null,null,null,null,{"$f":"SUM(AV4:BH4)","v":0},null,null,null,null,null,null,null,null,null,null,null,null,null,null,null,0,null,null,null,null,null,null,null,null,null,null,null,null,null,null,null,null,{"$f":"SUM(BZ4:CO4)","v":0},null,null,null,null,null,null,null,null,null,null,null,null,{"$f":"SUM(CQ4:DB4)","v":0},null,{"$f":"SUM(DD4:DD4)","v":0},0]
[4,"Mincke Yorgen",null,null,null,null,null,null,0,null,null,null,null,null,null,null,null,null,0,null,null,null,null,null,null,null,null,null,0,null,null,null,null,null,null,null,null,null,null,null,null,null,null,null,null,null,0,null,null,null,null,null,null,null,null,null,null,null,null,null,0,null,null,null,null,null,null,null,null,null,null,null,null,null,null,null,0,null,null,null,null,null,null,null,null,null,null,null,null,null,null,null,null,0,null,null,null,null,null,null,null,null,null,null,null,null,0,null,0,0]
[5,"Peeters Jolien",null,null,null,null,null,null,0,null,null,null,null,null,null,null,null,null,0,null,null,null,null,null,null,null,null,null,0,null,null,null,null,null,null,null,null,null,null,null,null,null,null,null,null,null,0,null,null,null,null,null,null,null,null,null,null,null,null,null,0,null,null,null,null,null,null,null,null,null,null,null,null,null,null,null,0,null,null,null,null,null,null,null,null,null,null,null,null,null,null,null,null,0,null,null,null,null,null,null,null,null,null,null,null,null,0,null,0,0]
[6,"Rokegem Iefke",null,null,null,null,null,null,0,null,null,null,null,null,null,null,null,null,0,null,null,null,null,null,null,null,null,null,0,null,null,null,null,null,null,null,null,null,null,null,null,null,null,null,null,null,0,null,null,null,null,null,null,null,null,null,null,null,null,null,0,null,null,null,null,null,null,null,null,null,null,null,null,null,null,null,0,null,null,null,null,null,null,null,null,null,null,null,null,null,null,null,null,0,null,null,null,null,null,null,null,null,null,null,null,null,0,null,0,0]
[7,"Rokegem Silke",null,null,null,null,null,null,0,null,null,null,null,null,null,null,null,null,0,null,null,null,null,null,null,null,null,null,0,null,null,null,null,null,null,null,null,null,null,null,null,null,null,null,null,null,0,null,null,null,null,null,null,null,null,null,null,null,null,null,0,null,null,null,null,null,null,null,null,null,null,null,null,null,null,null,0,null,null,null,null,null,null,null,null,null,null,null,null,null,null,null,null,0,null,null,null,null,null,null,null,null,null,null,null,null,0,null,0,0]
[8,"Van Cleemputte Ferre",null,2,null,null,null,null,2,null,null,null,null,null,null,null,null,null,0,null,null,null,null,null,null,null,null,null,0,null,null,null,null,null,null,2,null,2,null,null,null,1,null,null,null,null,5,null,null,null,null,null,null,null,null,2,null,null,2,null,4,null,null,null,null,null,null,null,2,null,2,null,null,null,null,null,4,null,null,null,null,null,null,null,null,null,null,null,null,null,null,null,null,0,null,null,null,null,null,null,null,null,null,null,null,null,0,null,0,15]
[null,null,null,{"$f":"COUNT(D2:D9)","v":1},{"$f":"COUNT(E2:E9)","v":0},{"$f":"COUNT(F2:F9)","v":0},{"$f":"COUNT(G2:G9)","v":0},{"$f":"COUNT(H2:H9)","v":0},{"$f":"COUNTIFS(I2:I9,\">0\")","v":1},{"$f":"COUNT(J2:J9)","v":0},0,0,0,0,0,0,0,0,{"$f":"COUNTIFS(S2:S9,\">0\")","v":0},{"$f":"COUNT(T2:T9)","v":0},0,0,0,0,0,0,0,0,{"$f":"COUNTIFS(AC2:AC9,\">0\")","v":0},{"$f":"COUNT(AD2:AD9)","v":0},0,0,0,0,0,1,0,1,0,0,0,1,0,0,0,0,{"$f":"COUNTIFS(AU2:AU9,\">0\")","v":1},{"$f":"COUNT(AV2:AV9)","v":0},0,0,0,0,0,0,0,1,0,0,1,0,{"$f":"COUNTIFS(BI2:BI9,\">0\")","v":1},{"$f":"COUNT(BJ2:BJ9)","v":0},0,0,0,0,0,0,1,0,1,0,0,0,0,0,{"$f":"COUNTIFS(BY2:BY9,\">0\")","v":1},{"$f":"COUNT(BZ2:BZ9)","v":0},0,0,0,0,0,0,0,0,0,0,0,0,0,0,0,{"$f":"COUNTIFS(CP2:CP9,\">0\")","v":0},{"$f":"COUNT(CQ2:CQ9)","v":0},0,0,0,0,0,0,0,0,0,0,0,{"$f":"COUNTIFS(DC2:DC9,\">0\")","v":0},{"$f":"COUNT(DD2:DD9)","v":0},{"$f":"COUNTIFS(DE2:DE9,\">0\")","v":0},{"$f":"COUNTIFS(DF2:DF9,\">0\")","v":1}]

{"sheet":"Jeugd -18j  Kms","index":5,"n_rows":10,"n_cols":108,"rows_kept":10,"cut":false,"hidden":false,"merged":[]}
[null,"2015 JEUGD -18j - Kms","2015-02-14","2015-02-15","2015-02-21","2015-02-22","2015-02-28","Februari","2015-03-01","2015-03-07","2015-03-08","2015-03-14","2015-03-15","2015-03-21","2015-03-22","2015-03-28","2015-03-29","Maart","2015-03-01","2015-03-07","2015-03-08","2015-03-14","2015-03-15","2015-03-21","2015-03-22","2015-03-28","2015-03-29","April","2015-05-01","2015-05-02","2015-05-03","2015-05-07","2015-05-09","2015-05-10","2015-05-14","2015-05-14","2015-05-16","2015-05-17","2015-05-21","2015-05-23","2015-05-24","2015-05-25","2015-05-28","2015-05-30","2015-05-31","Mei","2015-06-04","2015-06-06","2015-06-07","2015-06-11","2015-06-13","2015-06-14","2015-06-18","2015-06-20","2015-06-21","2015-06-25","2015-06-27","2015-06-28","Juni","2015-07-04","2015-07-05","2015-07-09","2015-07-11","2015-07-12","2015-07-16","2015-07-18","2015-07-19","2015-07-21","2015-07-23","2015-07-23","2015-07-25","2015-07-26","2015-07-30","2015-07-30","Juli","2015-08-01","2015-08-02","2015-08-06","2015-08-06","2015-08-08","2015-08-09","2015-08-13","2015-08-13","2015-08-15","2015-08-16","2015-08-20","2015-08-22","2015-08-23","2015-08-27","2015-08-29","2015-08-30","Augustus","2014-09-03","2014-09-04","2014-09-06","2014-09-07","2014-09-10","2014-09-13","2014-09-14","2014-09-19","2014-09-20","2014-09-21","2014-09-27","2014-09-28","September",null,"Permanenten","EINDSTAND"]
[1,"Anseau Jarne",null,null,null,null,null,{"$f":"SUM(C2:F2)","v":0},null,null,null,null,null,null,null,null,null,{"$f":"SUM(I2:Q2)","v":0},null,null,null,null,null,null,null,null,null,{"$f":"SUM(S2:AA2)","v":0},null,null,null,null,null,null,null,null,null,null,null,null,null,null,null,null,null,{"$f":"SUM(AC2:AS2)","v":0},null,null,null,null,null,null,null,null,null,null,null,null,{"$f":"SUM(AU2:BF2)","v":0},null,null,null,null,null,null,null,null,null,null,null,null,null,null,null,{"$f":"SUM(BJ2:BV2)","v":0},null,null,null,null,null,null,null,null,null,null,null,null,null,null,null,null,{"$f":"SUM(BX2:CM2)","v":0},null,null,null,null,null,null,null,null,null,null,null,null,{"$f":"SUM(CO2:CZ2)","v":0},null,{"$f":"SUM(DB2:DB2)","v":0},{"$f":"H2+R2+AB2+AT2+BG2+BW2+CN2+DA2+DC2","v":0}]
[{"$f":"A2+1","v":2},"Anseau Joran",null,null,null,null,null,0,null,null,null,null,null,null,null,null,null,0,null,null,null,null,null,null,null,null,null,0,null,null,null,null,null,null,null,null,null,null,null,null,null,null,null,null,null,0,null,null,null,null,null,null,null,null,null,null,null,null,0,null,null,null,null,null,null,null,null,null,null,null,null,null,null,null,0,null,null,null,null,null,null,null,null,null,null,null,null,null,null,null,null,0,null,null,null,null,null,null,null,null,null,null,null,null,0,null,0,0]
[{"$f":"A3+1","v":3},"Baeyens Clara",null,null,null,null,null,{"$f":"SUM(C4:F4)","v":0},null,null,null,null,null,null,null,null,null,0,null,null,null,null,null,null,null,null,null,{"$f":"SUM(S4:AA4)","v":0},null,null,null,null,null,null,null,null,null,null,null,null,null,null,null,null,null,{"$f":"SUM(AC4:AS4)","v":0},null,null,null,null,null,null,null,null,null,null,null,null,{"$f":"SUM(AU4:BF4)","v":0},null,null,null,null,null,null,null,null,null,null,null,null,null,null,null,0,null,null,null,null,null,null,null,null,null,null,null,null,null,null,null,null,{"$f":"SUM(BX4:CM4)","v":0},null,null,null,null,null,null,null,null,null,null,null,null,{"$f":"SUM(CO4:CZ4)","v":0},null,{"$f":"SUM(DB4:DB4)","v":0},0]
[4,"Mincke Yorgen",null,null,null,null,null,0,null,null,null,null,null,null,null,null,null,0,null,null,null,null,null,null,null,null,null,0,null,null,null,null,null,null,null,null,null,null,null,null,null,null,null,null,null,0,null,null,null,null,null,null,null,null,null,null,null,null,0,null,null,null,null,null,null,null,null,null,null,null,null,null,null,null,0,null,null,null,null,null,null,null,null,null,null,null,null,null,null,null,null,0,null,null,null,null,null,null,null,null,null,null,null,null,0,null,0,0]
[5,"Peeters Jolien",null,null,null,null,null,0,null,null,null,null,null,null,null,null,null,0,null,null,null,null,null,null,null,null,null,0,null,null,null,null,null,null,null,null,null,null,null,null,null,null,null,null,null,0,null,null,null,null,null,null,null,null,null,null,null,null,0,null,null,null,null,null,null,null,null,null,null,null,null,null,null,null,0,null,null,null,null,null,null,null,null,null,null,null,null,null,null,null,null,0,null,null,null,null,null,null,null,null,null,null,null,null,0,null,0,0]
[6,"Rokegem Iefke",null,null,null,null,null,0,null,null,null,null,null,null,null,null,null,0,null,null,null,null,null,null,null,null,null,0,null,null,null,null,null,null,null,null,null,null,null,null,null,null,null,null,null,0,null,null,null,null,null,null,null,null,null,null,null,null,0,null,null,null,null,null,null,null,null,null,null,null,null,null,null,null,0,null,null,null,null,null,null,null,null,null,null,null,null,null,null,null,null,0,null,null,null,null,null,null,null,null,null,null,null,null,0,null,0,0]
[7,"Rokegem Silke",null,null,null,null,null,0,null,null,null,null,null,null,null,null,null,0,null,null,null,null,null,null,null,null,null,0,null,null,null,null,null,null,null,null,null,null,null,null,null,null,null,null,null,0,null,null,null,null,null,null,null,null,null,null,null,null,0,null,null,null,null,null,null,null,null,null,null,null,null,null,null,null,0,null,null,null,null,null,null,null,null,null,null,null,null,null,null,null,null,0,null,null,null,null,null,null,null,null,null,null,null,null,0,null,0,0]
[8,"Van Cleemputte Ferre",50,null,null,null,null,50,null,null,null,null,null,null,null,null,null,0,null,null,null,null,null,null,null,null,null,0,null,null,null,null,null,null,70,null,85,null,null,null,88,null,null,null,null,243,null,null,null,null,null,null,null,60,null,null,90,null,150,null,null,null,null,null,null,null,70,null,55,null,null,null,null,null,125,null,null,null,null,null,null,null,null,null,null,null,null,null,null,null,null,0,null,null,null,null,null,null,null,null,null,null,null,null,0,null,0,568]
[null,null,{"$f":"COUNT(C2:C9)","v":1},{"$f":"COUNT(D2:D9)","v":0},{"$f":"COUNT(E2:E9)","v":0},{"$f":"COUNT(F2:F9)","v":0},{"$f":"COUNT(G2:G9)","v":0},{"$f":"COUNTIFS(H2:H9,\">0\")","v":1},{"$f":"COUNT(I2:I9)","v":0},0,0,0,0,0,0,0,0,{"$f":"COUNTIFS(R2:R9,\">0\")","v":0},{"$f":"COUNT(S2:S9)","v":0},0,0,0,0,0,0,0,0,{"$f":"COUNTIFS(AB2:AB9,\">0\")","v":0},{"$f":"COUNT(AC2:AC9)","v":0},0,0,0,0,0,1,0,1,0,0,0,1,0,0,0,0,{"$f":"COUNTIFS(AT2:AT9,\">0\")","v":1},{"$f":"COUNT(AU2:AU9)","v":0},0,0,0,0,0,0,1,0,0,1,0,{"$f":"COUNTIFS(BG2:BG9,\">0\")","v":1},{"$f":"COUNT(BH2:BH9)","v":0},0,0,0,0,0,0,1,0,1,0,0,0,0,0,{"$f":"COUNTIFS(BW2:BW9,\">0\")","v":1},{"$f":"COUNT(BX2:BX9)","v":0},0,0,0,0,0,0,0,0,0,0,0,0,0,0,0,{"$f":"COUNTIFS(CN2:CN9,\">0\")","v":0},{"$f":"COUNT(CO2:CO9)","v":0},0,0,0,0,0,0,0,0,0,0,0,{"$f":"COUNTIFS(DA2:DA9,\">0\")","v":0},{"$f":"COUNT(DB2:DB9)","v":0},{"$f":"COUNTIFS(DC2:DC9,\">0\")","v":0},{"$f":"COUNTIFS(DD2:DD9,\">0\")","v":1}]